Workbook

Sheet Титульний
F1: Додаток 7 до Інструкції зі складання звітності про роботу слідчих (підпункт 2 пункту 2 розділу I)
A2: ЗВІТНІСТЬ
A4: ОСНОВНІ ПОКАЗНИКИ РОБОТИ СЛІДЧИХ ОРГАНІВ ПРОКУРАТУРИ
A7: за 4 місяці 2018 року
A9: Подають: | E9: Строки подання | F9: Форма № 1-СЛМ
A10: Слідчі підрозділи регіональних прокуратур – керівнику регіональної прокуратури | E10: до 03 числа місяця, що настає за звітним періодом | F10: (місячна)
A11: Керівники регіональних прокуратур – Генеральній прокуратурі України | E11: до 05 числа місяця, що настає за звітним періодом | F11: ЗАТВЕРДЖЕНО Наказ Генеральної прокуратури України, Міністерства внутрішніх справ України, Служби безпеки України, Міністерства фінансів України, Національного антикорупційного бюро України від 24 жовтня 2017 року № 298/875/593/866/200-О за погодженням з Держстатом
A12: Структурні підрозділи Генеральної прокуратури України, які здійснюють досудове розслідування, – підрозділу з питань організаційного забезпечення Єдиного реєстру досудових розслідувань та інформаційно-аналітичної роботи Генеральної прокуратури України | E12: до 03 числа місяця, що настає за звітним періодом
A18: Респондент:
A19: Найменування: | B19: Прокуратура
A20: Місцезнаходження: | B20: 14000 Чернігів, вул.Князя Чорного, 9
A22: (поштовий індекс, область, район, населений пункт, вулиця/провулок, площа тошо, № будинку)
F27: 1

Sheet Форма 1-СЛМ
A2: Таблиця 1
E3: рядок
A4: а | E4: б | F4: 1
A5: Залишок незакінчених кримінальних проваджень на початок звітного періоду | E5: 1 | F5: 89
A6: Розпочато проваджень у звітному періоді (у тому числі виділених в окреме провадження згідно з частиною третьою статті 217 КПК України) | E6: 2 | F6: 17
A7: Відновлено розслідування у раніше закритих кримінальних провадженнях | E7: 3 | F7: 27
A8: Відновлено розслідування у раніше зупинених кримінальних провадженнях | E8: 4 | F8: 2
A9: Надійшло проваджень від інших органів (у тому числі із судів), прийнятих до провадження | E9: 5 | F9: 7
A10: Закінчено кримінальних проваджень (з повторно закінченими) | E10: 6 | F10: 82
A11: з них: | B11: закінчено проваджень у строки понад 2 місяці | E11: 7 | F11: 6
A12: Направлено до суду | B12: обвинувальних актів | E12: 8 | F12: 9
B13: у тому числі: | C13: з угодою про примирення | E13: 9 | T13: 4
C14: з угодою про визнання винуватості | E14: 10 | F14: 3
B15: клопотань про застосування примусових заходів медичного характеру | E15: 11
B16: клопотань про звільнення підозрюваного від кримінальної відповідальності | E16: 12
A17: Закрито кримінальних проваджень | E17: 13 | F17: 73
A18: з них: | B18: закрито прокурором | E18: 14 | F18: 1
A19: Кількість кримінальних проваджень, у яких зупинено досудове розслідування | E19: 15 | F19: 3
A20: з них: | B20: у зв’язку з оголошенням у розшук підозрюваного | E20: 16 | F20: 3
A21: Направлено кримінальних проваджень за підслідністю | E21: 17 | F21: 4
A22: Об’єднано кримінальних проваджень | E22: 18 | F22: 12
A23: Кількість підозрюваних, стосовно яких кримінальне провадження закрито прокурором на підставі пунктів 1-3 статті 284 КПК України | E23: 19
A24: з них: | B24: трималися під вартою | E24: 20
A25: Кількість обвинувачених та підозрюваних, стосовно яких провадження закрито за реабілітуючими підставами (за кримінальними справами, розслідуваними до 20.11.2012) | E25: 21
A26: з них: | B26: трималися під вартою | E26: 22
A27: Кількість виправданих осіб та осіб, стосовно яких провадження закриті судом за реабілітуючими підставами | E27: 23 | F27: 3
A28: з них: | B28: трималися під вартою | E28: 24
A29: Кількість виправданих осіб та осіб, стосовно яких справи закриті судом за відсутністю події або складу злочину і за недоведеністю обвинувачення (за кримінальними справами, направленими до суду до 20.11.2012) | E29: 25
A30: з них: | B30: трималися під вартою | E30: 26
A31: Кількість осіб, стосовно яких провадження закриті судом у зв’язку з відмовою прокурора від підтримання державного обвинувачення | E31: 27
A32: з них: | B32: трималися під вартою | E32: 28
A33: Залишок незакінчених кримінальних проваджень на кінець місяця | E33: 29 | F33: 41
A34: з них: | B34: з повідомленням особи про підозру у вчиненні кримінального правопорушення | E34: 30
A35: Кількість осіб, які тримаються під вартою, за незакінченими кримінальними провадженнями | E35: 31
A36: з них: | B36: зі строком тримання під вартою понад шістдесят днів | E36: 32
A37: Повернуто кримінальних справ на додаткове розслідування | E37: 33
A38: Повернуто обвинувальних актів, клопотань відповідно до пункту 3 частини третьої статті 314 КПК України | E38: 34 | F38: 3
A39: Направлено до суду обвинувальних актів (без повторних): | C39: про правопорушення, вчинені у складі організованої групи та злочинної організації | E39: 35 | F39: 1
C40: про корупційні правопорушення | E40: 36
C41: про правопорушення, вчинені у сфері земельних правовідносин | E41: 37
C42: про правопорушення, вчинені у бюджетній системі | E42: 38
A43: Контрольний рядок | E43: 39 | F43: =SUM(F5:F42) -> 386
A45: Прокурор | C45: Комашко В. В. | D45: _______________________________
C46: (прізвище, ім’я, по батькові) | D46: (підпис) | Q46: 1
A48: Керівник органу | C48: Шкільнюк О. М. | D48: _______________________________
A49: досудового розслідування | C49: (прізвище, ім’я, по батькові) | D49: (підпис)
A51: Виконавець | D51: _______________________________
C52: (прізвище, ім’я, по батькові) | D52: (підпис)
A54: Телефон: ___________________________ факс: __________________________ електронна пошта: _______________________________
A56: Звіт складено в примірниках
A57: Примірник №1
A58: Примірник №2 | D58: Вихідний № ___________ “___” _____________20 __р.

Sheet Довідки (hidden)
A1: Генеральна прокуратура України
A3: Управління організаційного забезпечення Єдиного реєстру досудових розслідувань та інформаційно - аналітичної роботи
A5: АНАЛІТИЧНИЙ ЗБІРНИК
A7: статистичної інформації органів досудового розслідування (прокуратура)
A9: за січень 2017 року
A11: по Україні
A12: (у розрізі областей)
A14: =G19 -> 2017
A15: Таблиця 1. Результати розслідування кримінальних проваджень
A17: Код | B17: Прокуратура | C17: Знаходилось кримінальних проваджень | F17: з них:
F18: Залишок незакінчених кримінальних проваджень на початок звітного періоду | I18: Розпочато проваджень у звітному періоді (у тому числі виділених в окреме провадження згідно з частиною третьою статті 217 КПК України) | L18: Відновлено розслідування у раніше закритих кримінальних провадженнях | O18: Відновлено розслідування у раніше зупинених кримінальних провадженнях | R18: Надійшло проваджень від інших органів (у тому числі із судів), прийнятих до провадження
C19: 2016 | D19: 2017 | E19: % | F19: =C19 -> 2016 | G19: =D19 -> 2017 | H19: % | I19: =F19 -> 2016 | J19: =G19 -> 2017 | K19: % | L19: =I19 -> 2016 | M19: =J19 -> 2017 | N19: % | O19: =L19 -> 2016 | P19: =M19 -> 2017 | Q19: % | R19: =O19 -> 2016 | S19: =P19 -> 2017 | T19: %
A20: 1 | B20: АР Крим | D20: 50 | E20: =IF(C20=0,0,IF(D20=0,"-100,0",IF(D20*100/C20<200,ROUND(D20*100/C20-100,1),ROUND(D20/C20,1)&" р"))) -> 0 | F20: 15 | G20: 31 | H20: =IF(F20=0,0,IF(G20=0,"-100,0",IF(G20*100/F20<200,ROUND(G20*100/F20-100,1),ROUND(G20/F20,1)&" р"))) -> 2,1 р | I20: 4 | J20: 19 | N20: =IF(L20=0,0,IF(M20=0,"-100,0",IF(M20*100/L20<200,ROUND(M20*100/L20-100,1),ROUND(M20/L20,1)&" р"))) -> 0 | Q20: =IF(O20=0,0,IF(P20=0,"-100,0",IF(P20*100/O20<200,ROUND(P20*100/O20-100,1),ROUND(P20/O20,1)&" р"))) -> 0 | T20: =IF(R20=0,0,IF(S20=0,"-100,0",IF(S20*100/R20<200,ROUND(S20*100/R20-100,1),ROUND(S20/R20,1)&" р"))) -> 0
A21: 2 | B21: Вінницької області | D21: 138 | E21: 0 | F21: 82 | G21: 94 | H21: 14.6 | I21: 30 | J21: 43 | K21: 4 | L21: 2 | M21: 1 | N21: -50 | Q21: 0 | T21: 0
A22: 3 | B22: Волинської області | D22: 89 | E22: 0 | F22: 57 | G22: 51 | H22: -10.5 | I22: 19 | J22: 31 | K22: 57 | L22: 5 | M22: 7 | N22: 40 | Q22: 0 | T22: 0
A23: 4 | B23: Дніпропетровської області | D23: 393 | E23: 0 | F23: 239 | G23: 228 | H23: -4.6 | I23: 108 | J23: 151 | L23: 17 | M23: 14 | N23: -17.6 | Q23: 0 | T23: 0
A24: 5 | B24: Донецької області | D24: 343 | E24: 0 | F24: 166 | G24: 191 | H24: 15.1 | I24: 70 | J24: 138 | L24: 6 | M24: 14 | N24: 2,3 р | Q24: 0 | T24: 0
A25: 6 | B25: Житомирської області | D25: 85 | E25: 0 | F25: 47 | G25: 54 | H25: 14.9 | I25: 20 | J25: 28 | L25: 3 | M25: 3 | N25: 0 | Q25: 0 | T25: 0
A26: 7 | B26: Закарпатської області | D26: 105 | E26: 0 | F26: 52 | G26: 63 | H26: 21.2 | I26: 31 | J26: 37 | K26: 1 | L26: 2 | M26: 5 | N26: 2,5 р | Q26: 0 | T26: 0
A27: 8 | B27: Запорізької області | D27: 305 | E27: 0 | F27: 109 | G27: 228 | H27: 2,1 р | I27: 37 | J27: 74 | L27: 2 | M27: 3 | N27: 50 | Q27: 0 | T27: 0
A28: 9 | B28: Івано-Франківської області | D28: 73 | E28: 0 | F28: 40 | G28: 61 | H28: 52.5 | I28: 10 | J28: 12 | L28: 1 | N28: -100,0 | Q28: 0 | T28: 0
A29: 10 | B29: Київської області | D29: 384 | E29: 0 | F29: 174 | G29: 318 | H29: 82.8 | I29: 71 | J29: 64 | K29: 2 | L29: 11 | M29: 2 | N29: -81.8 | Q29: 0 | T29: 0
A30: 11 | B30: міста Києва | D30: 588 | E30: 0 | F30: 485 | G30: 345 | H30: -28.9 | I30: 191 | J30: 183 | L30: 3 | M30: 60 | N30: 20 р | Q30: 0 | T30: 0
A31: 12 | B31: Кіровоградської області | D31: 100 | E31: 0 | F31: 72 | G31: 76 | H31: 5.6 | I31: 16 | J31: 21 | K31: 0 | L31: 2 | M31: 3 | N31: 50 | Q31: 0 | T31: 0
A32: 13 | B32: Луганської області | D32: 121 | E32: 0 | F32: 111 | G32: 79 | H32: -28.8 | I32: 16 | J32: 37 | L32: 2 | M32: 5 | N32: 2,5 р | Q32: 0 | T32: 0
A33: 14 | B33: Львівської області | D33: 121 | E33: 0 | F33: 42 | G33: 55 | H33: 31 | I33: 34 | J33: 55 | L33: 2 | M33: 11 | N33: 5,5 р | Q33: 0 | T33: 0
A34: 15 | B34: Миколаївської області | D34: 192 | E34: 0 | F34: 123 | G34: 167 | H34: 35.8 | I34: 43 | J34: 22 | L34: 8 | M34: 3 | N34: -62.5 | Q34: 0 | T34: 0
A35: 16 | B35: Одеської області | D35: 419 | E35: 0 | F35: 273 | G35: 271 | H35: -0.7 | I35: 83 | J35: 141 | K35: 3 | L35: 14 | M35: 7 | N35: -50 | Q35: 0 | T35: 0
A36: 17 | B36: Полтавської області | D36: 114 | E36: 0 | F36: 55 | G36: 69 | H36: 25.5 | I36: 35 | J36: 37 | K36: 1 | L36: 9 | M36: 8 | N36: -11.1 | Q36: 0 | T36: 0
A37: 18 | B37: Рівненської області | D37: 66 | E37: 0 | F37: 41 | G37: 39 | H37: -4.9 | I37: 26 | J37: 22 | L37: 2 | M37: 5 | N37: 2,5 р | Q37: 0 | T37: 0
A38: 19 | B38: Сумської області | D38: 119 | E38: 0 | F38: 68 | G38: 76 | H38: 11.8 | I38: 23 | J38: 38 | L38: 5 | M38: 5 | N38: 0 | Q38: 0 | T38: 0
A39: 20 | B39: Тернопільської області | D39: 87 | E39: 0 | F39: 39 | G39: 53 | H39: 35.9 | I39: 10 | J39: 30 | K39: 1 | L39: 3 | M39: 4 | N39: 33.3 | Q39: 0 | T39: 0
A40: 21 | B40: Харківської області | D40: 465 | E40: 0 | F40: 264 | G40: 313 | H40: 18.6 | I40: 201 | J40: 121 | K40: 2 | L40: 62 | M40: 31 | N40: -50 | Q40: 0 | T40: 0
A41: 22 | B41: Херсонської області | D41: 108 | E41: 0 | F41: 63 | G41: 71 | H41: 12.7 | I41: 27 | J41: 31 | K41: 230 | L41: 6 | M41: 6 | N41: 0 | Q41: 0 | T41: 0
A42: 23 | B42: Хмельницької області | D42: 86 | E42: 0 | F42: 51 | G42: 65 | H42: 27.5 | I42: 7 | J42: 17 | L42: 1 | M42: 4 | N42: 4 р | Q42: 0 | T42: 0
A43: 24 | B43: Черкаської області | D43: 117 | E43: 0 | F43: 96 | G43: 82 | H43: -14.6 | I43: 24 | J43: 24 | K43: 22 | L43: 8 | M43: 11 | N43: 37.5 | Q43: 0 | T43: 0
A44: 25 | B44: Чернівецької області | D44: 107 | E44: 0 | F44: 50 | G44: 81 | H44: 62 | I44: 25 | J44: 22 | L44: 4 | M44: 4 | N44: 0 | Q44: 0 | T44: 0
A45: 26 | B45: Чернігівської області | D45: 138 | E45: 0 | F45: 52 | G45: 89 | H45: 71.2 | I45: 27 | J45: 36 | L45: 5 | M45: 13 | N45: 2,6 р | Q45: 0 | T45: 0
A46: 27 | B46: Усього (без ЦА) | D46: 4913 | E46: 0 | F46: 2866 | G46: 3250 | H46: 13.4 | I46: 1188 | J46: 1434 | L46: 185 | M46: 229 | N46: 23.8 | O46: 0 | P46: 0 | Q46: 0 | R46: 0 | S46: 0 | T46: 0
A47: 28 | B47: Центральний апарат | D47: 792 | E47: 0 | F47: 347 | G47: 548 | H47: 57.9 | I47: 104 | J47: 239 | L47: 1 | M47: 5 | N47: 5 р | O47: 0 | P47: 0 | Q47: 0 | R47: 0 | S47: 0 | T47: 0
A48: 29 | B48: №17 | D48: 323 | E48: 0 | F48: 294 | G48: 228 | H48: -22.4 | I48: 73 | J48: 91 | K48: 3 | L48: 1 | M48: 4 | N48: 4 р | Q48: 0 | T48: 0
A49: 30 | B49: №26 | D49: 51 | E49: 0 | F49: 13 | G49: 17 | H49: 30.8 | I49: 3 | J49: 34 | K49: 0 | N49: 0 | Q49: 0 | T49: 0
A50: 31 | B50: №07 | D50: 0 | E50: 0 | F50: 21 | H50: -100,0 | I50: 20 | K50: 8 | N50: 0 | Q50: 0 | T50: 0
A51: 32 | B51: №07/1 | D51: 129 | E51: 0 | G51: 93 | H51: 0 | J51: 35 | K51: 24 | M51: 1 | N51: 0 | Q51: 0 | T51: 0
A52: 33 | B52: №29 | D52: 0 | E52: 0 | F52: 19 | H52: -100,0 | I52: 8 | N52: 0 | Q52: 0 | T52: 0
A53: 34 | B53: №29/1 | D53: 33 | E53: =IF(C53=0,0,IF(D53=0,"-100,0",IF(D53*100/C53<200,ROUND(D53*100/C53-100,1),ROUND(D53/C53,1)&" р"))) -> 0 | G53: 33 | H53: 0 | N53: 0 | Q53: 0 | T53: 0
A54: 35 | B54: №23 | D54: 179 | E54: 0 | G54: 155 | H54: 0 | J54: 24 | N54: 0 | Q54: 0 | T54: 0
A55: 36 | B55: №25 | D55: 46 | E55: 0 | H55: 0 | J55: 46 | N55: 0 | Q55: 0 | T55: 0
A56: 37 | B56: №30 | D56: 31 | G56: 22 | H56: 0 | J56: 9 | N56: 0 | Q56: 0 | T56: 0
A57: 38 | B57: Усього (без ВП) | D57: 5705 | E57: =IF(C57=0,0,IF(D57=0,"-100,0",IF(D57*100/C57<200,ROUND(D57*100/C57-100,1),ROUND(D57/C57,1)&" р"))) -> 0 | F57: 3213 | G57: 3798 | H57: 18.2 | I57: 1292 | J57: 1673 | L57: 186 | M57: 234 | N57: 25.8 | O57: 0 | P57: 0 | Q57: 0 | R57: 0 | S57: 0 | T57: 0
A58: 39 | B58: Апарат ГВП | D58: 184 | E58: 0 | F58: 56 | G58: 94 | H58: 67.9 | I58: 47 | J58: 90 | N58: 0 | Q58: 0 | T58: 0
A59: 40 | B59: Західного регіону | D59: 570 | E59: 0 | F59: 335 | G59: 387 | H59: 15.5 | I59: 368 | J59: 179 | K59: 1272 | L59: 7 | M59: 4 | N59: -42.9 | Q59: 0 | T59: 0
A60: 41 | B60: Південного регіону | D60: 627 | E60: 0 | F60: 306 | G60: 284 | H60: -7.2 | I60: 265 | J60: 340 | L60: 13 | M60: 3 | N60: -76.9 | Q60: 0 | T60: 0
A61: 42 | B61: Центрального регіону | D61: 637 | E61: 0 | F61: 425 | G61: 407 | H61: -4.2 | I61: 274 | J61: 226 | L61: 3 | M61: 4 | N61: 33.3 | Q61: 0 | T61: 0
A62: 43 | B62: Сил АТО | D62: 701 | E62: 0 | F62: 742 | G62: 439 | H62: -40.8 | I62: 219 | J62: 257 | K62: 5 | L62: 3 | M62: 5 | N62: 66.7 | Q62: 0 | T62: 0
A63: 44 | B63: Усього по ВП | D63: 2719 | E63: 0 | F63: 1864 | G63: 1611 | H63: -13.6 | I63: 1173 | J63: 1092 | L63: 26 | M63: 16 | N63: -38.5 | O63: 0 | P63: 0 | Q63: 0 | R63: 0 | S63: 0 | T63: 0
A64: 45 | B64: Усього по Україні | D64: 8424 | E64: 0 | F64: 5077 | G64: 5409 | H64: 6.5 | I64: 2465 | J64: 2765 | K64: 8 | L64: 212 | M64: 250 | N64: 17.9 | O64: 0 | P64: 0 | Q64: 0 | R64: 0 | S64: 0 | T64: 0
A65: Таблиця 2. Результати розслідування кримінальних проваджень
A67: Код | B67: Прокуратура | C67: Закінчено кримінальних проваджень (з повторно закінченими) | F67: Питома вага | H67: закінчено проваджень у строки понад 2 місяці | K67: Питома вага | M67: Направлено до суду проваджень з обвинувальним актом | P67: Питома вага | R67: у т. ч.:
R68: з угодами про примирення | T68: Питома вага | V68: з угодами про визнання винуватості | X68: Питома вага
C69: 2016 | D69: 2017 | E69: % | F69: =C69 -> 2016 | G69: =D69 -> 2017 | H69: =F69 -> 2016 | I69: =G69 -> 2017 | J69: % | K69: =H69 -> 2016 | L69: =I69 -> 2017 | M69: 2016 | N69: 2017 | O69: % | P69: =M69 -> 2016 | Q69: =N69 -> 2017 | R69: =P69 -> 2016 | S69: 2017 | T69: 2016 | U69: 2017 | V69: 2016 | W69: 2017 | X69: 2016 | Y69: 2017
A70: 1 | B70: АР Крим | C70: 1 | D70: 6 | E70: =IF(C70=0,0,IF(D70=0,"-100,0",IF(D70*100/C70<200,ROUND(D70*100/C70-100,1),ROUND(D70/C70,1)&" р"))) -> 6 р | F70: =IF(C20=0,0,C70*100/C20) -> 0 | G70: =IF(D20=0,0,D70*100/D20) -> 12 | I70: 3 | J70: =IF(H70=0,0,IF(I70=0,"-100,0",IF(I70*100/H70<200,ROUND(I70*100/H70-100,1),ROUND(I70/H70,1)&" р"))) -> 0 | K70: =IF(C70=0,0,H70*100/C70) -> 0 | L70: 1 | N70: 3 | O70: =IF(M70=0,0,IF(N70=0,"-100,0",IF(N70*100/M70<200,ROUND(N70*100/M70-100,1),ROUND(N70/M70,1)&" р"))) -> 0 | P70: =IF(C70=0,0,M70*100/C70) -> 0 | Q70: =IF(D70=0,0,N70*100/D70) -> 50 | T70: =IF(M70=0,0,R70*100/M70) -> 0 | U70: =IF(N70=0,0,S70*100/N70) -> 0 | X70: =IF(M70=0,0,V70*100/M70) -> 0 | Y70: =IF(N70=0,0,W70*100/N70) -> 0
A71: 2 | B71: Вінницької області | C71: 15 | D71: 11 | E71: -26.7 | F71: 0 | G71: 7.971014493 | H71: 4 | I71: 3 | J71: -25 | K71: 26.66666667 | L71: 51 | M71: 4 | N71: 4 | O71: 0 | P71: =IF(C71=0,0,M71*100/C71) -> 26.66666667 | Q71: 36.36363636 | T71: =IF(M71=0,0,R71*100/M71) -> 0 | U71: 0 | X71: =IF(M71=0,0,V71*100/M71) -> 0 | Y71: 0
A72: 3 | B72: Волинської області | C72: 7 | D72: 8 | E72: 14.3 | F72: 0 | G72: 8.988764045 | J72: 0 | K72: 0 | M72: 2 | N72: 3 | O72: 50 | P72: 28.57142857 | Q72: 37.5 | T72: 0 | U72: 0 | W72: 1 | X72: 0 | Y72: 33.33333333
A73: 4 | B73: Дніпропетровської області | C73: 58 | D73: 29 | E73: -50 | F73: 0 | G73: 7.37913486 | H73: 3 | J73: -100,0 | K73: 5.172413793 | L73: 201 | M73: 6 | N73: 10 | O73: 66.7 | P73: 10.34482759 | Q73: 34.48275862 | S73: 1 | T73: 0 | U73: 10 | X73: 0 | Y73: 0
A74: 5 | B74: Донецької області | C74: 48 | D74: 51 | E74: 6.3 | F74: 0 | G74: 14.86880466 | H74: 1 | J74: -100,0 | K74: 2.083333333 | M74: 7 | N74: 9 | O74: 28.6 | P74: 14.58333333 | Q74: 17.64705882 | T74: 0 | U74: 0 | V74: 4 | W74: 3 | X74: 57.14285714 | Y74: 33.33333333
A75: 6 | B75: Житомирської області | C75: 14 | D75: 13 | E75: -7.1 | F75: 0 | G75: 15.29411765 | H75: 0 | I75: 2 | J75: 0 | K75: 0 | M75: 1 | N75: 4 | O75: 4 р | P75: 7.142857143 | Q75: 30.76923077 | T75: 0 | U75: 0 | X75: 0 | Y75: 0
A76: 7 | B76: Закарпатської області | C76: 14 | D76: 9 | E76: -35.7 | F76: 0 | G76: 8.571428571 | H76: 1 | J76: -100,0 | K76: 7.142857143 | M76: 5 | N76: 3 | O76: -40 | P76: 35.71428571 | Q76: 33.33333333 | T76: 0 | U76: 0 | V76: 2 | W76: 1 | X76: 40 | Y76: 33.33333333
A77: 8 | B77: Запорізької області | C77: 6 | D77: 23 | E77: 3,8 р | F77: 0 | G77: 7.540983607 | H77: 3 | I77: 2 | J77: -33.3 | K77: 50 | L77: 1 | M77: 4 | N77: 4 | O77: 0 | P77: 66.66666667 | Q77: 17.39130435 | R77: 1 | T77: 25 | U77: 0 | V77: 1 | X77: 25 | Y77: 0
A78: 9 | B78: Івано-Франківської області | C78: 5 | D78: 5 | E78: 0 | F78: 0 | G78: 6.849315068 | I78: 1 | J78: 0 | K78: 0 | M78: 1 | N78: 4 | O78: 4 р | P78: 20 | Q78: 80 | T78: 0 | U78: 0 | W78: 1 | X78: 0 | Y78: 25
A79: 10 | B79: Київської області | C79: 14 | D79: 14 | E79: 0 | F79: 0 | G79: 3.645833333 | H79: 1 | J79: -100,0 | K79: 7.142857143 | M79: 6 | N79: 1 | O79: -83.3 | P79: 42.85714286 | Q79: 7.142857143 | S79: 1 | T79: 0 | U79: 100 | V79: 4 | X79: 66.66666667 | Y79: 0
A80: 11 | B80: міста Києва | C80: 97 | D80: 93 | E80: -4.1 | F80: 0 | G80: 15.81632653 | J80: 0 | K80: 0 | L80: 3 | M80: 3 | N80: 7 | O80: 2,3 р | P80: 3.092783505 | Q80: 7.52688172 | R80: 0 | T80: 0 | U80: 0 | V80: 1 | X80: 33.33333333 | Y80: 0
A81: 12 | B81: Кіровоградської області | C81: 13 | D81: 14 | E81: 7.7 | F81: 0 | G81: 14 | H81: 1 | I81: 2 | J81: 2 р | K81: 7.692307692 | L81: 538 | M81: 1 | N81: 3 | O81: 3 р | P81: 7.692307692 | Q81: 21.42857143 | T81: 0 | U81: 0 | X81: 0 | Y81: 0
A82: 13 | B82: Луганської області | C82: 5 | D82: 21 | E82: 4,2 р | F82: 0 | G82: 17.3553719 | H82: 1 | J82: -100,0 | K82: 20 | M82: 3 | N82: 9 | O82: 3 р | P82: 60 | Q82: 42.85714286 | T82: 0 | U82: 0 | X82: 0 | Y82: 0
A83: 14 | B83: Львівської області | C83: 10 | D83: 19 | E83: 90 | F83: 0 | G83: 15.70247934 | I83: 1 | J83: 0 | K83: 0 | M83: 2 | N83: 5 | O83: 2,5 р | P83: 20 | Q83: 26.31578947 | T83: 0 | U83: 0 | W83: 1 | X83: 0 | Y83: 20
A84: 15 | B84: Миколаївської області | C84: 8 | D84: 17 | E84: 2,1 р | F84: 0 | G84: 8.854166667 | H84: 1 | J84: -100,0 | K84: 12.5 | M84: 1 | N84: 2 | O84: 2 р | P84: 12.5 | Q84: 11.76470588 | T84: 0 | U84: 0 | W84: 2 | X84: 0 | Y84: 100
A85: 16 | B85: Одеської області | C85: 24 | D85: 43 | E85: 79.2 | F85: 0 | G85: 10.26252983 | H85: 1 | I85: 2 | J85: 2 р | K85: 4.166666667 | M85: 1 | N85: 6 | O85: 6 р | P85: 4.166666667 | Q85: 13.95348837 | T85: 0 | U85: 0 | X85: 0 | Y85: 0
A86: 17 | B86: Полтавської області | C86: 11 | D86: 16 | E86: 45.5 | F86: 0 | G86: 14.03508772 | H86: 1 | I86: 1 | J86: 0 | K86: 9.090909091 | M86: 3 | N86: 6 | O86: 2 р | P86: 27.27272727 | Q86: 37.5 | T86: 0 | U86: 0 | V86: 1 | W86: 1 | X86: 33.33333333 | Y86: 16.66666667
A87: 18 | B87: Рівненської області | C87: 8 | D87: 17 | E87: 2,1 р | F87: 0 | G87: 25.75757576 | H87: 1 | J87: -100,0 | K87: 12.5 | L87: 2 | M87: 4 | N87: 4 | O87: 0 | P87: 50 | Q87: 23.52941176 | T87: 0 | U87: 0 | V87: 2 | W87: 1 | X87: 50 | Y87: 25
A88: 19 | B88: Сумської області | C88: 9 | D88: 13 | E88: 44.4 | F88: 0 | G88: 10.92436975 | I88: 2 | J88: 0 | K88: 0 | M88: 3 | N88: 6 | O88: 2 р | P88: 33.33333333 | Q88: 46.15384615 | R88: 1 | T88: 33.33333333 | U88: 0 | V88: 1 | X88: 33.33333333 | Y88: 0
A89: 20 | B89: Тернопільської області | C89: 10 | D89: 8 | E89: -20 | F89: 0 | G89: 9.195402299 | H89: 1 | J89: -100,0 | K89: 10 | L89: 20 | M89: 1 | N89: 2 | O89: 2 р | P89: 10 | Q89: 25 | T89: 0 | U89: 0 | X89: 0 | Y89: 0
A90: 21 | B90: Харківської області | C90: 95 | D90: 25 | E90: -73.7 | F90: 0 | G90: 5.376344086 | H90: 1 | J90: -100,0 | K90: 1.052631579 | M90: 2 | N90: 10 | O90: 5 р | P90: 2.105263158 | Q90: 40 | T90: 0 | U90: 0 | V90: 1 | W90: 2 | X90: 50 | Y90: 20
A91: 22 | B91: Херсонської області | C91: 20 | D91: 13 | E91: -35 | F91: 0 | G91: 12.03703704 | J91: 0 | K91: 0 | M91: 1 | O91: -100,0 | P91: 5 | Q91: 0 | T91: 0 | U91: 0 | X91: 0 | Y91: 0
A92: 23 | B92: Хмельницької області | C92: 11 | D92: 2 | E92: -81.8 | F92: 0 | G92: 2.325581395 | H92: 3 | J92: -100,0 | K92: 27.27272727 | L92: 1 | M92: 5 | N92: 2 | O92: -60 | P92: 45.45454545 | Q92: 100 | T92: 0 | U92: 0 | X92: 0 | Y92: 0
A93: 24 | B93: Черкаської області | C93: 25 | D93: 13 | E93: -48 | F93: 0 | G93: 11.11111111 | I93: 1 | J93: 0 | K93: 0 | M93: 5 | N93: 3 | O93: -40 | P93: 20 | Q93: 23.07692308 | T93: 0 | U93: 0 | X93: 0 | Y93: 0
A94: 25 | B94: Чернівецької області | C94: 7 | D94: 10 | E94: 42.9 | F94: 0 | G94: 9.345794393 | H94: 1 | I94: 2 | J94: 2 р | K94: 14.28571429 | L94: 13 | M94: 3 | N94: 6 | O94: 2 р | P94: 42.85714286 | Q94: 60 | T94: 0 | U94: 0 | W94: 3 | X94: 0 | Y94: 50
A95: 26 | B95: Чернігівської області | C95: 10 | D95: 19 | E95: 90 | F95: 0 | G95: 13.76811594 | I95: 1 | J95: 0 | K95: 0 | L95: 50 | M95: 3 | N95: 1 | O95: -66.7 | P95: 30 | Q95: 5.263157895 | T95: 0 | U95: 0 | X95: 0 | Y95: 0
A96: 27 | B96: Усього (без ЦА) | C96: 545 | D96: 512 | E96: -6.1 | F96: 0 | G96: 10.42133116 | H96: 25 | I96: 23 | J96: -8 | K96: 4.587155963 | M96: 77 | N96: 117 | O96: 51.9 | P96: 14.12844037 | Q96: 22.8515625 | R96: 2 | S96: 2 | T96: 2.597402597 | U96: 1.709401709 | V96: 17 | W96: 16 | X96: 22.07792208 | Y96: 13.67521368
A97: 28 | B97: Центральний апарат | C97: 11 | D97: 39 | E97: 3,5 р | F97: 0 | G97: 4.924242424 | H97: 7 | I97: 29 | J97: 4,1 р | K97: 63.63636364 | M97: 9 | N97: 33 | O97: 3,7 р | P97: 81.81818182 | Q97: 84.61538462 | R97: 0 | S97: 1 | T97: 0 | U97: 3.03030303 | V97: 0 | W97: 2 | X97: 0 | Y97: 6.060606061
A98: 29 | B98: №17 | C98: 4 | D98: 9 | E98: 2,3 р | F98: 0 | G98: 2.786377709 | H98: 2 | I98: 2 | J98: 0 | K98: 50 | L98: 3 | M98: 4 | N98: 5 | O98: 25 | P98: 100 | Q98: 55.55555556 | T98: 0 | U98: 0 | W98: 2 | X98: 0 | Y98: 40
A99: 30 | B99: №26 | D99: 22 | E99: 0 | F99: 0 | G99: 43.1372549 | I99: 22 | J99: 0 | K99: 0 | L99: 7 | N99: 22 | O99: 0 | P99: 0 | Q99: 100 | T99: 0 | U99: 0 | X99: 0 | Y99: 0
A100: 31 | B100: №07 | C100: 4 | E100: -100,0 | F100: 0 | G100: 0 | H100: 3 | J100: -100,0 | K100: 75 | M100: 3 | O100: -100,0 | P100: 75 | Q100: 0 | T100: 0 | U100: 0 | X100: 0 | Y100: 0
A101: 32 | B101: №07/1 | D101: 2 | E101: 0 | F101: 0 | G101: 1.550387597 | J101: 0 | K101: 0 | N101: 1 | O101: 0 | P101: 0 | Q101: 50 | T101: 0 | U101: 0 | X101: 0 | Y101: 0
A102: 33 | B102: №29 | C102: 3 | E102: -100,0 | F102: 0 | G102: 0 | H102: 2 | J102: -100,0 | K102: 66.66666667 | M102: 2 | O102: -100,0 | P102: 66.66666667 | Q102: 0 | T102: 0 | U102: 0 | X102: 0 | Y102: 0
A103: 34 | B103: №29/1 | E103: 0 | F103: 0 | G103: 0 | J103: 0 | K103: 0 | O103: 0 | P103: 0 | Q103: 0 | T103: 0 | U103: 0 | X103: 0 | Y103: 0
A104: 35 | B104: №23 | D104: 4 | E104: 0 | F104: 0 | G104: 2.234636872 | I104: 3 | J104: 0 | K104: 0 | N104: 3 | O104: 0 | P104: 0 | Q104: 75 | S104: 1 | T104: 0 | U104: 33.33333333 | X104: 0 | Y104: 0
A105: 36 | B105: №25 | D105: 1 | E105: 0 | F105: 0 | G105: 2.173913043 | I105: 1 | J105: 0 | K105: 0 | N105: 1 | O105: 0 | P105: 0 | Q105: 100 | T105: 0 | U105: =IF(N105=0,0,S105*100/N105) -> 0 | X105: 0 | Y105: 0
A106: 37 | B106: №30 | D106: 1 | E106: 0 | F106: 0 | G106: 3.225806452 | I106: 1 | J106: 0 | K106: 0 | N106: 1 | O106: 0 | P106: 0 | Q106: 100 | T106: 0 | U106: =IF(N106=0,0,S106*100/N106) -> 0 | X106: 0 | Y106: 0
A107: 38 | B107: Усього (без ВП) | C107: 556 | D107: 551 | E107: -0.9 | F107: 0 | G107: 9.658194566 | H107: 32 | I107: 52 | J107: 62.5 | K107: 5.755395683 | M107: 86 | N107: 150 | O107: 74.4 | P107: 15.4676259 | Q107: 27.22323049 | R107: 2 | S107: 3 | T107: 2.325581395 | U107: 2 | V107: 17 | W107: 18 | X107: 19.76744186 | Y107: 12
A108: 39 | B108: Апарат ГВП | C108: 4 | D108: 10 | E108: 2,5 р | F108: 0 | G108: 5.434782609 | H108: 3 | I108: 9 | J108: 3 р | K108: 75 | M108: 3 | N108: 9 | O108: 3 р | P108: 75 | Q108: 90 | T108: 0 | U108: 0 | V108: 2 | X108: 66.66666667 | Y108: 0
A109: 40 | B109: Західного регіону | C109: 77 | D109: 72 | E109: -6.5 | F109: 0 | G109: 12.63157895 | H109: 2 | I109: 7 | J109: 3,5 р | K109: 2.597402597 | L109: 33 | M109: 60 | N109: 58 | O109: -3.3 | P109: 77.92207792 | Q109: 80.55555556 | T109: 0 | U109: 0 | V109: 5 | W109: 14 | X109: 8.333333333 | Y109: 24.13793103
A110: 41 | B110: Південного регіону | C110: 125 | D110: 133 | E110: 6.4 | F110: 0 | G110: 21.21212121 | H110: 2 | J110: -100,0 | K110: 1.6 | M110: 97 | N110: 107 | O110: 10.3 | P110: 77.6 | Q110: 80.45112782 | T110: 0 | U110: 0 | V110: 12 | W110: 3 | X110: 12.37113402 | Y110: 2.803738318
A111: 42 | B111: Центрального регіону | C111: 137 | D111: 90 | E111: -34.3 | F111: 0 | G111: 14.12872841 | H111: 4 | I111: 3 | J111: -25 | K111: 2.919708029 | L111: 1 | M111: 108 | N111: 81 | O111: -25 | P111: 78.83211679 | Q111: 90 | T111: 0 | U111: 0 | V111: 3 | W111: 1 | X111: 2.777777778 | Y111: 1.234567901
A112: 43 | B112: Сил АТО | C112: 118 | D112: 119 | E112: 0.8 | F112: 0 | G112: 16.97574893 | H112: 8 | I112: 3 | J112: -62.5 | K112: 6.779661017 | L112: 33 | M112: 96 | N112: 84 | O112: -12.5 | P112: 81.3559322 | Q112: 70.58823529 | R112: 1 | T112: 1.041666667 | U112: 0 | V112: 22 | W112: 28 | X112: 22.91666667 | Y112: 33.33333333
A113: 44 | B113: Усього по ВП | C113: 461 | D113: 424 | E113: -8 | F113: 0 | G113: 15.59396837 | H113: 19 | I113: 22 | J113: 15.8 | K113: 4.121475054 | L113: 215 | M113: 364 | N113: 339 | O113: -6.9 | P113: 78.95878525 | Q113: 79.95283019 | R113: 1 | S113: 0 | T113: 0.2747252747 | U113: 0 | V113: 44 | W113: 46 | X113: 12.08791209 | Y113: 13.56932153
A114: 45 | B114: Усього по Україні | C114: 1017 | D114: 975 | E114: -4.1 | F114: 0 | G114: 11.57407407 | H114: 51 | I114: 74 | J114: 45.1 | K114: 5.014749263 | L114: 221 | M114: 450 | N114: 489 | O114: 8.7 | P114: 44.24778761 | Q114: 50.15384615 | R114: 3 | S114: 3 | T114: 0.6666666667 | U114: 0.6134969325 | V114: 61 | W114: 64 | X114: 13.55555556 | Y114: 13.08793456
A115: Таблиця 3. Результати розслідування кримінальних проваджень
A117: Код | B117: Прокуратура | C117: Направлено до суду клопотань про звільнення підозрюваного від крим. відповідальності | F117: Закрито кримінальних проваджень | I117: Питома вага | K117: з них: | M117: Питома вага | O117: Зупинено кримінальних проваджень
K118: закрито прокурором
C119: 2016 | D119: 2017 | E119: % | F119: =C119 -> 2016 | G119: =D119 -> 2017 | H119: % | I119: =F119 -> 2016 | J119: =G119 -> 2017 | K119: =F119 -> 2016 | L119: =G119 -> 2017 | M119: =K119 -> 2016 | N119: =L119 -> 2017 | O119: =M119 -> 2016 | P119: =N119 -> 2017 | Q119: %
A120: 1 | B120: АР Крим | E120: =IF(C120=0,0,IF(D120=0,"-100,0",IF(D120*100/C120<200,ROUND(D120*100/C120-100,1),ROUND(D120/C120,1)&" р"))) -> 0 | F120: 1 | G120: 3 | H120: =IF(F120=0,0,IF(G120=0,"-100,0",IF(G120*100/F120<200,ROUND(G120*100/F120-100,1),ROUND(G120/F120,1)&" р"))) -> 3 р | I120: =IF(F20=0,0,F120*100/F20) -> 6.666666667 | J120: =IF(G20=0,0,G120*100/G20) -> 9.677419355 | M120: =IF(F120=0,0,K120*100/F120) -> 0 | N120: 0 | P120: 9 | Q120: =IF(O120=0,0,IF(P120=0,"-100,0",IF(P120*100/O120<200,ROUND(P120*100/O120-100,1),ROUND(P120/O120,1)&" р"))) -> 0
A121: 2 | B121: Вінницької області | E121: 0 | F121: 11 | G121: 7 | H121: -36.4 | I121: 13.41463415 | J121: 7.446808511 | M121: 0 | N121: 0 | Q121: 0
A122: 3 | B122: Волинської області | E122: 0 | F122: 5 | G122: 5 | H122: 0 | I122: 8.771929825 | J122: 9.803921569 | M122: 0 | N122: 0 | Q122: 0
A123: 4 | B123: Дніпропетровської області | E123: 0 | F123: 52 | G123: 19 | H123: -63.5 | I123: 21.75732218 | J123: 8.333333333 | M123: 0 | N123: 0 | O123: 5 | Q123: -100,0
A124: 5 | B124: Донецької області | D124: 1 | E124: 0 | F124: 41 | G124: 41 | H124: 0 | I124: 24.69879518 | J124: 21.46596859 | M124: 0 | N124: 0 | O124: 1 | P124: 2 | Q124: 2 р
A125: 6 | B125: Житомирської області | D125: 1 | E125: 0 | F125: 13 | G125: 8 | H125: -38.5 | I125: 27.65957447 | J125: 14.81481481 | M125: 0 | N125: 0 | P125: 1 | Q125: 0
A126: 7 | B126: Закарпатської області | E126: 0 | F126: 9 | G126: 6 | H126: -33.3 | I126: 17.30769231 | J126: 9.523809524 | M126: 0 | N126: 0 | Q126: 0
A127: 8 | B127: Запорізької області | E127: 0 | F127: 2 | G127: 19 | H127: 9,5 р | I127: 1.834862385 | J127: 8.333333333 | M127: 0 | N127: 0 | P127: 4 | Q127: 0
A128: 9 | B128: Івано-Франківської області | E128: 0 | F128: 4 | G128: 1 | H128: -75 | I128: 10 | J128: 1.639344262 | M128: 0 | N128: 0 | O128: 1 | Q128: -100,0
A129: 10 | B129: Київської області | E129: 0 | F129: 8 | G129: 13 | H129: 62.5 | I129: 4.597701149 | J129: 4.088050314 | M129: 0 | N129: 0 | O129: 2 | P129: 1 | Q129: -50
A130: 11 | B130: міста Києва | C130: 0 | E130: 0 | F130: 94 | G130: 86 | H130: -8.5 | I130: 19.3814433 | J130: 24.92753623 | K130: 0 | M130: 0 | N130: 0 | O130: 1 | P130: 3 | Q130: 3 р
A131: 12 | B131: Кіровоградської області | E131: 0 | F131: 12 | G131: 11 | H131: -8.3 | I131: 16.66666667 | J131: 14.47368421 | L131: 0 | M131: 0 | N131: 0 | O131: 1 | P131: 0 | Q131: -100,0
A132: 13 | B132: Луганської області | E132: 0 | F132: 2 | G132: 12 | H132: 6 р | I132: 1.801801802 | J132: 15.18987342 | M132: 0 | N132: 0 | P132: 10 | Q132: 0
A133: 14 | B133: Львівської області | E133: 0 | F133: 8 | G133: 14 | H133: 75 | I133: 19.04761905 | J133: 25.45454545 | M133: 0 | N133: 0 | O133: 2 | Q133: -100,0
A134: 15 | B134: Миколаївської області | E134: 0 | F134: 7 | G134: 15 | H134: 2,1 р | I134: 5.691056911 | J134: 8.982035928 | M134: 0 | N134: 0 | O134: 1 | P134: 1 | Q134: 0
A135: 16 | B135: Одеської області | E135: 0 | F135: 23 | G135: 37 | H135: 60.9 | I135: 8.424908425 | J135: 13.65313653 | M135: 0 | N135: 0 | O135: 1 | P135: 1 | Q135: 0
A136: 17 | B136: Полтавської області | E136: 0 | F136: 8 | G136: 10 | H136: 25 | I136: 14.54545455 | J136: 14.49275362 | M136: 0 | N136: 0 | O136: 1 | Q136: -100,0
A137: 18 | B137: Рівненської області | E137: 0 | F137: 4 | G137: 13 | H137: 3,3 р | I137: 9.756097561 | J137: 33.33333333 | M137: 0 | N137: 0 | Q137: 0
A138: 19 | B138: Сумської області | E138: 0 | F138: 6 | G138: 7 | H138: 16.7 | I138: 8.823529412 | J138: 9.210526316 | M138: 0 | N138: 0 | O138: 2 | Q138: -100,0
A139: 20 | B139: Тернопільської області | E139: 0 | F139: 9 | G139: 6 | H139: -33.3 | I139: 23.07692308 | J139: 11.32075472 | M139: 0 | N139: 0 | Q139: 0
A140: 21 | B140: Харківської області | E140: 0 | F140: 93 | G140: 15 | H140: -83.9 | I140: 35.22727273 | J140: 4.792332268 | M140: 0 | N140: 0 | O140: 1 | P140: 2 | Q140: 2 р
A141: 22 | B141: Херсонської області | E141: 0 | F141: 19 | G141: 13 | H141: -31.6 | I141: 30.15873016 | J141: 18.30985915 | M141: 0 | N141: 0 | Q141: 0
A142: 23 | B142: Хмельницької області | E142: 0 | F142: 6 | H142: -100,0 | I142: 11.76470588 | J142: 0 | M142: 0 | N142: 0 | O142: 1 | Q142: -100,0
A143: 24 | B143: Черкаської області | E143: 0 | F143: 20 | G143: 10 | H143: -50 | I143: 20.83333333 | J143: 12.19512195 | M143: 0 | N143: 0 | P143: 1 | Q143: 0
A144: 25 | B144: Чернівецької області | E144: 0 | F144: 4 | G144: 4 | H144: 0 | I144: 8 | J144: 4.938271605 | M144: 0 | N144: 0 | Q144: 0
A145: 26 | B145: Чернігівської області | E145: 0 | F145: 7 | G145: 18 | H145: 2,6 р | I145: 13.46153846 | J145: 20.2247191 | M145: 0 | N145: 0 | O145: 1 | Q145: -100,0
A146: 27 | B146: Усього (без ЦА) | C146: 0 | D146: 2 | E146: 0 | F146: 468 | G146: 393 | H146: -16 | I146: 16.32937893 | J146: 12.09230769 | K146: 0 | L146: 0 | M146: 0 | N146: 0 | O146: 21 | P146: 35 | Q146: 66.7
A147: 28 | B147: Центральний апарат | C147: 0 | D147: 0 | E147: 0 | F147: 2 | G147: 6 | H147: 3 р | I147: 0.5763688761 | J147: 1.094890511 | K147: 0 | L147: 0 | M147: 0 | N147: 0 | O147: 6 | P147: 46 | Q147: 7,7 р
A148: 29 | B148: №17 | E148: 0 | G148: 4 | H148: 0 | I148: 0 | J148: 1.754385965 | M148: 0 | N148: 0 | O148: 6 | P148: 28 | Q148: 4,7 р
A149: 30 | B149: №26 | E149: 0 | H149: 0 | I149: 0 | J149: 0 | M149: 0 | N149: 0 | P149: 13 | Q149: 0
A150: 31 | B150: №07 | E150: 0 | F150: 1 | H150: -100,0 | I150: 4.761904762 | J150: 0 | M150: 0 | N150: 0 | Q150: 0
A151: 32 | B151: №07/1 | E151: 0 | G151: 1 | H151: 0 | I151: 0 | J151: 1.075268817 | M151: 0 | N151: 0 | Q151: 0
A152: 33 | B152: №29 | E152: 0 | F152: 1 | H152: -100,0 | I152: 5.263157895 | J152: 0 | M152: 0 | N152: 0 | Q152: 0
A153: 34 | B153: №29/1 | E153: 0 | H153: 0 | I153: 0 | J153: 0 | M153: 0 | N153: 0 | Q153: 0
A154: 35 | B154: №23 | E154: 0 | G154: 1 | H154: 0 | I154: 0 | J154: 0.6451612903 | M154: 0 | N154: 0 | P154: 1 | Q154: 0
A155: 36 | B155: №25 | E155: 0 | H155: 0 | I155: 0 | J155: 0 | M155: 0 | N155: 0 | P155: 1 | Q155: 0
A156: 37 | B156: №30 | E156: 0 | H156: 0 | I156: 0 | J156: 0 | M156: 0 | N156: 0 | P156: 3 | Q156: 0
A157: 38 | B157: Усього (без ВП) | C157: 0 | D157: 2 | E157: 0 | F157: 470 | G157: 399 | H157: -15.1 | I157: 14.62807345 | J157: 10.50552923 | K157: 0 | L157: 0 | M157: 0 | N157: 0 | O157: 27 | P157: 81 | Q157: 3 р
A158: 39 | B158: Апарат ГВП | E158: 0 | F158: 1 | G158: 1 | H158: 0 | I158: 1.785714286 | J158: 1.063829787 | M158: 0 | N158: 0 | O158: 1 | P158: 8 | Q158: 8 р
A159: 40 | B159: Західного регіону | D159: 1 | E159: 0 | F159: 17 | G159: 13 | H159: -23.5 | I159: 5.074626866 | J159: 3.359173127 | M159: 0 | N159: 0 | O159: 212 | P159: 17 | Q159: -92
A160: 41 | B160: Південного регіону | C160: 7 | E160: -100,0 | F160: 21 | G160: 26 | H160: 23.8 | I160: 6.862745098 | J160: 9.154929577 | L160: 4 | M160: 0 | N160: 15.38461538 | O160: 83 | P160: 117 | Q160: 41
A161: 42 | B161: Центрального регіону | C161: 1 | D161: 3 | E161: 3 р | F161: 28 | G161: 6 | H161: -78.6 | I161: 6.588235294 | J161: 1.474201474 | K161: 4 | M161: 14.28571429 | N161: 0 | O161: 68 | P161: 22 | Q161: -67.6
A162: 43 | B162: Сил АТО | E162: 0 | F162: 22 | G162: 35 | H162: 59.1 | I162: 2.964959569 | J162: 7.972665148 | K162: 2 | L162: 1 | M162: 9.090909091 | N162: 2.857142857 | O162: 22 | P162: 17 | Q162: -22.7
A163: 44 | B163: Усього по ВП | C163: 8 | D163: 4 | E163: -50 | F163: 89 | G163: 81 | H163: -9 | I163: 4.774678112 | J163: 5.027932961 | K163: 6 | L163: 5 | M163: 6.741573034 | N163: 6.172839506 | O163: 386 | P163: 181 | Q163: -53.1
A164: 45 | B164: Усього по Україні | C164: 8 | D164: 6 | E164: -25 | F164: 559 | G164: 480 | H164: -14.1 | I164: 11.01043924 | J164: 8.874098724 | K164: 6 | L164: 5 | M164: 1.073345259 | N164: 1.041666667 | O164: 413 | P164: 262 | Q164: -36.6
A165: Таблиця 4. Дані про виправданих осіб, та осіб стосовно яких кримінальне провадження закрито (без повторних) за реабілітуючих підстав
A167: Код | B167: Прокуратура | C167: Кількість підозрюваних, стосовно яких кримінальне провадження закрито прокурором на підставі п.п. 1-3 ст.284 КПК України | F167: з них: | H167: Кількість виправданих і осіб, стосовно яких провадження закриті судом за реабілітуючими підставами | K167: з них: | M167: Кількість осіб, стосовно яких провадження закриті судом у зв’язку з відмовою прокурора від підтримання держ. обвинувачення | P167: з них: | R167: Повернуто обвинувальних актів, клопотань відповідно до п. 3 ч. 3 ст. 314 КПК України
F168: трималися під вартою | K168: трималися під вартою | P168: трималися під вартою
C169: =F119 -> 2016 | D169: =G119 -> 2017 | E169: % | F169: =C169 -> 2016 | G169: =D169 -> 2017 | H169: =F169 -> 2016 | I169: =G169 -> 2017 | J169: % | K169: =H169 -> 2016 | L169: =I169 -> 2017 | M169: =K169 -> 2016 | N169: =L169 -> 2017 | O169: % | P169: =M169 -> 2016 | Q169: =N169 -> 2017 | R169: 2016 | S169: 2017 | T169: %
A170: 1 | B170: АР Крим | E170: =IF(C170=0,0,IF(D170=0,"-100,0",IF(D170*100/C170<200,ROUND(D170*100/C170-100,1),ROUND(D170/C170,1)&" р"))) -> 0 | J170: =IF(H170=0,0,IF(I170=0,"-100,0",IF(I170*100/H170<200,ROUND(I170*100/H170-100,1),ROUND(I170/H170,1)&" р"))) -> 0 | O170: =IF(M170=0,0,IF(N170=0,"-100,0",IF(N170*100/M170<200,ROUND(N170*100/M170-100,1),ROUND(N170/M170,1)&" р"))) -> 0
A171: 2 | B171: Вінницької області | E171: 0 | J171: 0 | O171: 0
A172: 3 | B172: Волинської області | E172: 0 | J172: 0 | O172: 0
A173: 4 | B173: Дніпропетровської області | E173: 0 | J173: 0 | O173: 0 | R173: 1 | S173: 1
A174: 5 | B174: Донецької області | E174: 0 | J174: 0 | O174: 0 | S174: 1
A175: 6 | B175: Житомирської області | E175: 0 | J175: 0 | O175: 0
A176: 7 | B176: Закарпатської області | E176: 0 | J176: 0 | O176: 0
A177: 8 | B177: Запорізької області | E177: 0 | J177: 0 | O177: 0 | S177: 1
A178: 9 | B178: Івано-Франківської області | E178: 0 | J178: 0 | O178: 0
A179: 10 | B179: Київської області | E179: 0 | J179: 0 | O179: 0
A180: 11 | B180: міста Києва | C180: 1 | E180: -100,0 | F180: 0 | H180: 0 | J180: 0 | K180: 0 | M180: 0 | O180: 0 | P180: 0 | R180: 1
A181: 12 | B181: Кіровоградської області | E181: 0 | I181: 0 | J181: 0 | O181: 0 | R181: 1
A182: 13 | B182: Луганської області | E182: 0 | J182: 0 | O182: 0
A183: 14 | B183: Львівської області | E183: 0 | J183: 0 | O183: 0
A184: 15 | B184: Миколаївської області | E184: 0 | J184: 0 | O184: 0
A185: 16 | B185: Одеської області | E185: 0 | J185: 0 | O185: 0 | S185: 2
A186: 17 | B186: Полтавської області | E186: 0 | H186: 1 | J186: -100,0 | O186: 0
A187: 18 | B187: Рівненської області | E187: 0 | J187: 0 | O187: 0 | R187: 2
A188: 19 | B188: Сумської області | E188: 0 | J188: 0 | O188: 0
A189: 20 | B189: Тернопільської області | E189: 0 | J189: 0 | O189: 0 | R189: 1 | S189: 1
A190: 21 | B190: Харківської області | E190: 0 | J190: 0 | O190: 0
A191: 22 | B191: Херсонської області | E191: 0 | J191: 0 | O191: 0
A192: 23 | B192: Хмельницької області | E192: 0 | J192: 0 | O192: 0 | R192: 1
A193: 24 | B193: Черкаської області | E193: 0 | J193: 0 | O193: 0
A194: 25 | B194: Чернівецької області | E194: 0 | J194: 0 | O194: 0
A195: 26 | B195: Чернігівської області | E195: 0 | J195: 0 | O195: 0
A196: 27 | B196: Усього (без ЦА) | C196: 1 | D196: 0 | E196: -100,0 | F196: 0 | G196: 0 | H196: 1 | I196: 0 | J196: -100,0 | K196: 0 | L196: 0 | M196: 0 | N196: 0 | O196: 0 | P196: 0 | Q196: 0 | R196: 7 | S196: 6 | T196: 0
A197: 28 | B197: Центральний апарат | C197: 0 | D197: 0 | E197: 0 | F197: 0 | G197: 0 | H197: 0 | I197: 0 | J197: 0 | K197: 0 | L197: 0 | M197: 0 | N197: 0 | O197: 0 | P197: 0 | Q197: 0 | R197: 0 | S197: 0 | T197: 0
A198: 29 | B198: №17 | E198: 0 | J198: 0 | O198: 0
A199: 30 | B199: №26 | E199: 0 | J199: 0 | O199: 0
A200: 31 | B200: №07 | E200: 0 | J200: 0 | O200: 0
A201: 32 | B201: №07/1 | E201: 0 | J201: 0 | O201: 0
A202: 33 | B202: №29 | E202: 0 | J202: 0 | O202: 0
A203: 34 | B203: №29/1 | E203: 0 | J203: 0 | O203: 0
A204: 35 | B204: №23 | E204: 0 | J204: 0 | O204: 0
A205: 36 | B205: №25 | E205: 0 | J205: 0 | O205: 0
A206: 37 | B206: №30 | E206: 0 | J206: 0 | O206: 0
A207: 38 | B207: Усього (без ВП) | C207: 1 | D207: 0 | E207: -100,0 | F207: 0 | G207: 0 | H207: 1 | I207: 0 | J207: -100,0 | K207: 0 | L207: 0 | M207: 0 | N207: 0 | O207: 0 | P207: 0 | Q207: 0 | R207: 7 | S207: 6 | T207: 0
A208: 39 | B208: Апарат ГВП | E208: 0 | J208: 0 | O208: 0
A209: 40 | B209: Західного регіону | E209: 0 | J209: 0 | O209: 0 | S209: 7
A210: 41 | B210: Південного регіону | E210: 0 | J210: 0 | O210: 0
... 150 more rows

Sheet Довідки1 (hidden)
A1: ДОВІДКА
A2: про слідчу роботу
A3: в органах прокуратури
A4: =Довідки!A9 -> за січень 2017 року
E6: Рядок | F6: =Довідки!F19 -> 2016 | G6: =Довідки!G19 -> 2017 | H6: Дин. %
A7: а | E7: б | F7: 1 | G7: 2 | H7: 3
A8: Знаходилось кримінальних проваджень | E8: 1 | F8: 4505 | G8: 5471 | H8: =IF(F8=0,0,IF(G8=0,"-100,0",IF(G8*100/F8<200,ROUND(G8*100/F8-100,1),ROUND(G8/F8,1)&" р"))) -> 21.4
A9: Закінчено кримінальних проваджень (з повторно закінченими) | E9: 2 | F9: 556 | G9: 551 | H9: =IF(F9=0,0,IF(G9=0,"-100,0",IF(G9*100/F9<200,ROUND(G9*100/F9-100,1),ROUND(G9/F9,1)&" р"))) -> -0.9
A10: Направлено до суду | B10: закінчено проваджень у строки понад 2 місяці | E10: 3 | F10: 32 | G10: 52 | H10: 62.5
B11: питома вага закінчених у строки понад 2 місяці | E11: 4 | F11: =IF(F9=0,0,F10*100/F9) -> 5.755395683 | G11: =IF(G9=0,0,G10*100/G9) -> 9.43738657
B12: проваджень з обвинувальним актом | E12: 5 | F12: 86 | G12: 150 | H12: 74.4
B13: питома вага проваджень з обвинувальним актом | E13: 6 | F13: =IF(F9=0,0,F12*100/F9) -> 15.4676259 | G13: =IF(G9=0,0,G12*100/G9) -> 27.22323049
B14: у т.ч.: | C14: з угодами про примирення | E14: 7 | F14: 2 | G14: 3 | H14: =IF(F14=0,0,IF(G14=0,"-100,0",IF(G14*100/F14<200,ROUND(G14*100/F14-100,1),ROUND(G14/F14,1)&" р"))) -> 50
C15: з угодами про визнання винуватості | E15: 8 | F15: 17 | G15: 18 | H15: 5.9
B16: клопотань про застосування примусових заходів медичного характеру | E16: 9 | F16: 0 | G16: 0 | H16: 0
B17: клопотань про звільнення підозрюваного від кримінальної відповідальності | E17: 10 | F17: 0 | G17: 2 | H17: 0
B18: закрито кримінальних проваджень | E18: 11 | F18: 470 | G18: 399 | H18: -15.1
B19: питома вага | E19: 12 | F19: =IF(F9=0,0,F18*100/F9) -> 84.5323741 | G19: =IF(G9=0,0,G18*100/G9) -> 72.4137931
B20: з них: | C20: закрито прокурором | E20: 13 | F20: 0 | G20: 0 | H20: =IF(F20=0,0,IF(G20=0,"-100,0",IF(G20*100/F20<200,ROUND(G20*100/F20-100,1),ROUND(G20/F20,1)&" р"))) -> 0
C21: питома вага | E21: 14 | F21: =IF(F18=0,0,F20*100/F18) -> 0 | G21: =IF(G18=0,0,G20*100/G18) -> 0
A22: Зупинено кримінальних проваджень | E22: 15 | F22: 27 | G22: 81 | H22: 3 р
A23: з них: | B23: у зв'язку з невстановленням місцезнаходження підозрюваного | E23: 16 | F23: 19 | G23: 65 | H23: 3,4 р
A24: Направлено кримінальних проваджень за підслідністю | E24: 17 | F24: 89 | G24: 89 | H24: 0
A25: Приєднано кримінальних проваджень до інших проваджень | E25: 18 | F25: 192 | G25: 328 | H25: 70.8
A26: Кількість підозрюваних, стосовно яких кримінальне провадження закрито прокурором на підставі п.п. 1-3 ст.284 КПК України | E26: 19 | F26: 1 | G26: 0 | H26: -100,0
A27: з них: | B27: трималися під вартою | E27: 20 | F27: 0 | G27: 0 | H27: 0
A28: Кількість обвинувачених та підозрюваних, стосовно яких провадження закрито за реабілітуючими підставами (за кримінальними справами, розслідуваними до 20.11.2012) | E28: 21 | F28: 6 | G28: 0 | H28: =IF(F28=0,0,IF(G28=0,"-100,0",IF(G28*100/F28<200,ROUND(G28*100/F28-100,1),ROUND(G28/F28,1)&" р"))) -> -100,0
A29: з них: | B29: трималися під вартою | E29: 22 | F29: 1 | G29: 0 | H29: =IF(F29=0,0,IF(G29=0,"-100,0",IF(G29*100/F29<200,ROUND(G29*100/F29-100,1),ROUND(G29/F29,1)&" р"))) -> -100,0
A30: Кількість виправданих і осіб, стосовно яких провадження закриті судом за реабілітуючими підставами | E30: 23 | F30: 1 | G30: 0 | H30: -100,0
A31: з них: | B31: трималися під вартою | E31: 24 | F31: 0 | G31: 0 | H31: 0
A32: Кількість виправданих і осіб, стосовно яких справи закриті судом за відсутністю події або складу злочину і за недоведеністю обвинувачення (за справами, направленими до суду до 20.11.2012) | E32: 25 | F32: 0 | G32: 1 | H32: 0
A33: з них: | B33: трималися під вартою | E33: 26 | F33: 0 | G33: 0 | H33: 0
A34: Кількість осіб, стосовно яких провадження закриті судом у зв’язку з відмовою прокурора від підтримання державного обвинувачення | E34: 27 | F34: 0 | G34: 0 | H34: 0
A35: з них: | B35: трималися під вартою | E35: 28 | F35: 0 | G35: 0 | H35: 0
A36: Залишок незакінчених кримінальних проваджень на кінець місяця | E36: 29 | F36: 3641 | G36: 4422 | H36: 21.5
A37: з них | B37: з повідомленням особи про підозру у вчиненні кримінального правопорушення | E37: 30 | F37: 172 | G37: 193 | H37: 12.2
A38: Кількість осіб, які тримаються під вартою за незакінченими кримінальними провадженнями | E38: 31 | F38: 39 | G38: 51 | H38: 30.8
A39: з них | B39: зі строком тримання під вартою понад шістдесят днів | E39: 32 | F39: 20 | G39: 25 | H39: =IF(F39=0,0,IF(G39=0,"-100,0",IF(G39*100/F39<200,ROUND(G39*100/F39-100,1),ROUND(G39/F39,1)&" р"))) -> 25
A40: Повернуто кримінальних справ на додаткове розслідування | E40: 33 | F40: 2 | G40: 1 | H40: =IF(F40=0,0,IF(G40=0,"-100,0",IF(G40*100/F40<200,ROUND(G40*100/F40-100,1),ROUND(G40/F40,1)&" р"))) -> -50
A41: Повернуто обвинувальних актів, клопотань відповідно до п. 3 ч. 3ст. 314 КПК України | E41: 34 | F41: 7 | G41: 6 | H41: =IF(F41=0,0,IF(G41=0,"-100,0",IF(G41*100/F41<200,ROUND(G41*100/F41-100,1),ROUND(G41/F41,1)&" р"))) -> -14.3
A42: Направлено до суду кримінальних проваджень з обвинувальним актом (без повторних): | C42: про правопорушення, вчинені у складі ОГ та ЗО | E42: 35 | F42: 2 | G42: 2 | H42: 0
C43: про корупційні правопорушення | E43: 36 | F43: 33 | G43: 47 | H43: 42.4
C44: про правопорушення, вчинені у сфері земельних правовідносин | E44: 37 | F44: 2 | G44: 4 | H44: 2 р
C45: про правопорушення, вчинені у бюджетній системі | E45: 38 | F45: 0 | G45: 2 | H45: 0

Sheet Довідки2 (hidden)
A1: ДОВІДКА
A2: про слідчу роботу
A3: в органах прокуратури України (Всього по Україні)
A4: =Довідки1!A4 -> за січень 2017 року
E6: Рядок | F6: =Довідки1!F6 -> 2016 | G6: =Довідки1!G6 -> 2017 | H6: Дин. %
A7: а | E7: б | F7: 1 | G7: 2 | H7: 3
A8: Знаходилось кримінальних проваджень | E8: 1 | F8: 7542 | G8: 8174 | H8: =IF(F8=0,0,IF(G8=0,"-100,0",IF(G8*100/F8<200,ROUND(G8*100/F8-100,1),ROUND(G8/F8,1)&" р"))) -> 8.4
A9: Закінчено кримінальних проваджень (з повторно закінченими) | E9: 2 | F9: 1017 | G9: 975 | H9: =IF(F9=0,0,IF(G9=0,"-100,0",IF(G9*100/F9<200,ROUND(G9*100/F9-100,1),ROUND(G9/F9,1)&" р"))) -> -4.1
A10: Направлено до суду | B10: закінчено проваджень у строки понад 2 місяці | E10: 3 | F10: 51 | G10: 74 | H10: 45.1
B11: питома вага закінчених у строки понад 2 місяці | E11: 4 | F11: =IF(F9=0,0,F10*100/F9) -> 5.014749263 | G11: =IF(G9=0,0,G10*100/G9) -> 7.58974359
B12: проваджень з обвинувальним актом | E12: 5 | F12: 450 | G12: 489 | H12: 8.7
B13: питома вага проваджень з обвинувальним актом | E13: 6 | F13: =IF(F9=0,0,F12*100/F9) -> 44.24778761 | G13: =IF(G9=0,0,G12*100/G9) -> 50.15384615
B14: у т.ч.: | C14: з угодами про примирення | E14: 7 | F14: 3 | G14: 3 | H14: =IF(F14=0,0,IF(G14=0,"-100,0",IF(G14*100/F14<200,ROUND(G14*100/F14-100,1),ROUND(G14/F14,1)&" р"))) -> 0
C15: з угодами про визнання винуватості | E15: 8 | F15: 61 | G15: 64 | H15: 4.9
B16: клопотань про застосування примусових заходів медичного характеру | E16: 9 | F16: 0 | G16: 0 | H16: 0
B17: клопотань про звільнення підозрюваного від кримінальної відповідальності | E17: 10 | F17: 8 | G17: 6 | H17: -25
B18: закрито кримінальних проваджень | E18: 11 | F18: 559 | G18: 480 | H18: -14.1
B19: питома вага | E19: 12 | F19: =IF(F9=0,0,F18*100/F9) -> 54.96558505 | G19: =IF(G9=0,0,G18*100/G9) -> 49.23076923
B20: з них: | C20: закрито прокурором | E20: 13 | F20: 6 | G20: 5 | H20: =IF(F20=0,0,IF(G20=0,"-100,0",IF(G20*100/F20<200,ROUND(G20*100/F20-100,1),ROUND(G20/F20,1)&" р"))) -> -16.7
C21: питома вага | E21: 14 | F21: =IF(F18=0,0,F20*100/F18) -> 1.073345259 | G21: =IF(G18=0,0,G20*100/G18) -> 1.041666667
A22: Зупинено кримінальних проваджень | E22: 15 | F22: 413 | G22: 262 | H22: -36.6
A23: з них: | B23: у зв'язку з невстановленням місцезнаходження підозрюваного | E23: 16 | F23: 400 | G23: 243 | H23: -39.3
A24: Направлено кримінальних проваджень за підслідністю | E24: 17 | F24: 143 | G24: 188 | H24: 31.5
A25: Приєднано кримінальних проваджень до інших проваджень | E25: 18 | F25: 274 | G25: 462 | H25: 68.6
A26: Кількість підозрюваних, стосовно яких кримінальне провадження закрито прокурором на підставі п.п. 1-3 ст.284 КПК України | E26: 19 | F26: 1 | G26: 0 | H26: -100,0
A27: з них: | B27: трималися під вартою | E27: 20 | F27: 0 | G27: 0 | H27: 0
A28: Кількість обвинувачених та підозрюваних, стосовно яких провадження закрито за реабілітуючими підставами (за кримінальними справами, розслідуваними до 20.11.2012) | E28: 21 | F28: 6 | G28: 0 | H28: =IF(F28=0,0,IF(G28=0,"-100,0",IF(G28*100/F28<200,ROUND(G28*100/F28-100,1),ROUND(G28/F28,1)&" р"))) -> -100,0
A29: з них: | B29: трималися під вартою | E29: 22 | F29: 1 | G29: 0 | H29: =IF(F29=0,0,IF(G29=0,"-100,0",IF(G29*100/F29<200,ROUND(G29*100/F29-100,1),ROUND(G29/F29,1)&" р"))) -> -100,0
A30: Кількість виправданих і осіб, стосовно яких провадження закриті судом за реабілітуючими підставами | E30: 23 | F30: 1 | G30: 0 | H30: -100,0
A31: з них: | B31: трималися під вартою | E31: 24 | F31: 0 | G31: 0 | H31: 0
A32: Кількість виправданих і осіб, стосовно яких справи закриті судом за відсутністю події або складу злочину і за недоведеністю обвинувачення (за справами, направленими до суду до 20.11.2012) | E32: 25 | F32: 0 | G32: 1 | H32: 0
A33: з них: | B33: трималися під вартою | E33: 26 | F33: 0 | G33: 0 | H33: 0
A34: Кількість осіб, стосовно яких провадження закриті судом у зв’язку з відмовою прокурора від підтримання державного обвинувачення | E34: 27 | F34: 0 | G34: 0 | H34: 0
A35: з них: | B35: трималися під вартою | E35: 28 | F35: 0 | G35: 0 | H35: 0
A36: Залишок незакінчених кримінальних проваджень на кінець місяця | E36: 29 | F36: 5695 | G36: 6287 | H36: 10.4
A37: з них | B37: з повідомленням особи про підозру у вчиненні кримінального правопорушення | E37: 30 | F37: 320 | G37: 316 | H37: -1.3
A38: Кількість осіб, які тримаються під вартою за незакінченими кримінальними провадженнями | E38: 31 | F38: 94 | G38: 91 | H38: -3.2
A39: з них | B39: зі строком тримання під вартою понад шістдесят днів | E39: 32 | F39: 48 | G39: 49 | H39: 2.1
A40: Повернуто кримінальних справ на додаткове розслідування | E40: 33 | F40: 2 | G40: 1 | H40: =IF(F40=0,0,IF(G40=0,"-100,0",IF(G40*100/F40<200,ROUND(G40*100/F40-100,1),ROUND(G40/F40,1)&" р"))) -> -50
A41: Повернуто обвинувальних актів, клопотань відповідно до п. 3 ч. 3ст. 314 КПК України | E41: 34 | F41: 7 | G41: 14 | H41: =IF(F41=0,0,IF(G41=0,"-100,0",IF(G41*100/F41<200,ROUND(G41*100/F41-100,1),ROUND(G41/F41,1)&" р"))) -> 2 р
A42: Направлено до суду кримінальних проваджень з обвинувальним актом (без повторних): | C42: про правопорушення, вчинені у складі ОГ та ЗО | E42: 35 | F42: 4 | G42: 2 | H42: -50
C43: про корупційні правопорушення | E43: 36 | F43: 51 | G43: 69 | H43: 35.3
C44: про правопорушення, вчинені у сфері земельних правовідносин | E44: 37 | F44: 3 | G44: 4 | H44: 33.3
C45: про правопорушення, вчинені у бюджетній системі | E45: 38 | F45: 0 | G45: 3 | H45: 0

Sheet Довідки3 (hidden)
A1: ДОВІДКА
A2: про слідчу роботу
A3: Усього по Україні
A4: за січень 2017 року
E6: Рядок | F6: 2016 | G6: 2017 | H6: Дин. % | I6: Дин. % (по Укр. без ВП)
A7: а | E7: б | F7: 1 | G7: 2 | H7: 3 | I7: 4
A8: Знаходилось кримінальних проваджень | E8: 1 | G8: 8424 | H8: =IF(F8=0,0,IF(G8=0,"-100,0",IF(G8*100/F8<200,ROUND(G8*100/F8-100,1),ROUND(G8/F8,1)&" р"))) -> 0 | I8: =Довідки1!H8 -> 21.4
A9: Закінчено кримінальних проваджень (з повторно закінченими) | E9: 2 | F9: 1017 | G9: 975 | H9: =IF(F9=0,0,IF(G9=0,"-100,0",IF(G9*100/F9<200,ROUND(G9*100/F9-100,1),ROUND(G9/F9,1)&" р"))) -> -4.1 | I9: =Довідки1!H9 -> -0.9
A10: Направлено до суду | B10: закінчено проваджень у строки понад 2 місяці | E10: 3 | F10: 51 | G10: 74 | H10: 45.1 | I10: =Довідки1!H10 -> 62.5
B11: питома вага закінчених у строки понад 2 місяці | E11: 4 | F11: =IF(F9=0,0,F10*100/F9) -> 5.014749263 | G11: =IF(G9=0,0,G10*100/G9) -> 7.58974359 | I11: =Довідки1!G11 -> 9.43738657
B12: проваджень з обвинувальним актом | E12: 5 | F12: 450 | G12: 489 | H12: 8.7 | I12: =Довідки1!H12 -> 74.4
B13: питома вага проваджень з обвинувальним актом | E13: 6 | F13: =IF(F9=0,0,F12*100/F9) -> 44.24778761 | G13: =IF(G9=0,0,G12*100/G9) -> 50.15384615 | I13: =Довідки1!G13 -> 27.22323049
B14: у т.ч.: | C14: з угодами про примирення | E14: 7 | F14: 3 | G14: 3 | H14: =IF(F14=0,0,IF(G14=0,"-100,0",IF(G14*100/F14<200,ROUND(G14*100/F14-100,1),ROUND(G14/F14,1)&" р"))) -> 0 | I14: =Довідки1!H14 -> 50
C15: з угодами про визнання винуватості | E15: 8 | F15: 61 | G15: 64 | H15: 4.9 | I15: =Довідки1!H15 -> 5.9
B16: клопотань про застосування примусових заходів медичного характеру | E16: 9 | F16: 0 | G16: 0 | H16: 0 | I16: =Довідки1!H16 -> 0
B17: клопотань про звільнення підозрюваного від кримінальної відповідальності | E17: 10 | F17: 8 | G17: 6 | H17: -25 | I17: =Довідки1!H17 -> 0
B18: закрито кримінальних проваджень | E18: 11 | F18: 559 | G18: 480 | H18: -14.1 | I18: =Довідки1!H18 -> -15.1
B19: питома вага | E19: 12 | F19: =IF(F9=0,0,F18*100/F9) -> 54.96558505 | G19: =IF(G9=0,0,G18*100/G9) -> 49.23076923 | I19: =Довідки1!G19 -> 72.4137931
B20: з них: | C20: закрито прокурором | E20: 13 | F20: 6 | G20: 5 | H20: =IF(F20=0,0,IF(G20=0,"-100,0",IF(G20*100/F20<200,ROUND(G20*100/F20-100,1),ROUND(G20/F20,1)&" р"))) -> -16.7 | I20: =Довідки1!H20 -> 0
C21: питома вага | E21: 14 | F21: =IF(F18=0,0,F20*100/F18) -> 1.073345259 | G21: =IF(G18=0,0,G20*100/G18) -> 1.041666667 | I21: =Довідки1!G21 -> 0
A22: Зупинено кримінальних проваджень | E22: 15 | F22: 413 | G22: 262 | H22: -36.6 | I22: =Довідки1!H22 -> 3 р
A23: з них: | B23: у зв'язку з невстановленням місцезнаходження підозрюваного | E23: 16 | F23: 400 | G23: 243 | H23: -39.3 | I23: =Довідки1!H23 -> 3,4 р
A24: Направлено кримінальних проваджень за підслідністю | E24: 17 | F24: 143 | G24: 188 | H24: 31.5 | I24: =Довідки1!H24 -> 0
A25: Приєднано кримінальних проваджень до інших проваджень | E25: 18 | F25: 274 | G25: 462 | H25: 68.6 | I25: =Довідки1!H25 -> 70.8
A26: Кількість підозрюваних, стосовно яких кримінальне провадження закрито прокурором на підставі п.п. 1-3 ст.284 КПК України | E26: 19 | F26: 1 | G26: 0 | H26: -100,0 | I26: =Довідки1!H26 -> -100,0
A27: з них: | B27: трималися під вартою | E27: 20 | F27: 0 | G27: 0 | H27: 0 | I27: =Довідки1!H27 -> 0
A28: Кількість обвинувачених та підозрюваних, стосовно яких провадження закрито за реабілітуючими підставами (за кримінальними справами, розслідуваними до 20.11.2012) | E28: 21 | F28: 6 | G28: 0 | H28: =IF(F28=0,0,IF(G28=0,"-100,0",IF(G28*100/F28<200,ROUND(G28*100/F28-100,1),ROUND(G28/F28,1)&" р"))) -> -100,0 | I28: =Довідки1!H28 -> -100,0
A29: з них: | B29: трималися під вартою | E29: 22 | F29: 1 | G29: 0 | H29: =IF(F29=0,0,IF(G29=0,"-100,0",IF(G29*100/F29<200,ROUND(G29*100/F29-100,1),ROUND(G29/F29,1)&" р"))) -> -100,0 | I29: =Довідки1!H29 -> -100,0
A30: Кількість виправданих і осіб, стосовно яких провадження закриті судом за реабілітуючими підставами | E30: 23 | F30: 1 | G30: 0 | H30: -100,0 | I30: =Довідки1!H30 -> -100,0
A31: з них: | B31: трималися під вартою | E31: 24 | F31: 0 | G31: 0 | H31: 0 | I31: =Довідки1!H31 -> 0
A32: Кількість виправданих і осіб, стосовно яких справи закриті судом за відсутністю події або складу злочину і за недоведеністю обвинувачення (за справами, направленими до суду до 20.11.2012) | E32: 25 | F32: 0 | G32: 1 | H32: 0 | I32: =Довідки1!H32 -> 0
A33: з них: | B33: трималися під вартою | E33: 26 | F33: 0 | G33: 0 | H33: 0 | I33: =Довідки1!H33 -> 0
A34: Кількість осіб, стосовно яких провадження закриті судом у зв’язку з відмовою прокурора від підтримання державного обвинувачення | E34: 27 | F34: 0 | G34: 0 | H34: 0 | I34: =Довідки1!H34 -> 0
A35: з них: | B35: трималися під вартою | E35: 28 | F35: 0 | G35: 0 | H35: 0 | I35: =Довідки1!H35 -> 0
A36: Залишок незакінчених кримінальних проваджень на кінець місяця | E36: 29 | F36: 5695 | G36: 6287 | H36: 10.4 | I36: =Довідки1!H36 -> 21.5
A37: з них | B37: з повідомленням особи про підозру у вчиненні кримінального правопорушення | E37: 30 | F37: 320 | G37: 316 | H37: -1.3 | I37: =Довідки1!H37 -> 12.2
A38: Кількість осіб, які тримаються під вартою за незакінченими кримінальними провадженнями | E38: 31 | F38: 94 | G38: 91 | H38: -3.2 | I38: =Довідки1!H38 -> 30.8
A39: з них | B39: зі строком тримання під вартою понад шістдесят днів | E39: 32 | F39: 48 | G39: 49 | H39: 2.1 | I39: =Довідки1!H39 -> 25
A40: Повернуто кримінальних справ на додаткове розслідування | E40: 33 | F40: 2 | G40: 1 | H40: =IF(F40=0,0,IF(G40=0,"-100,0",IF(G40*100/F40<200,ROUND(G40*100/F40-100,1),ROUND(G40/F40,1)&" р"))) -> -50 | I40: =Довідки1!H40 -> -50
A41: Повернуто обвинувальних актів, клопотань відповідно до п. 3 ч. 3ст. 314 КПК України | E41: 34 | F41: 7 | G41: 14 | H41: =IF(F41=0,0,IF(G41=0,"-100,0",IF(G41*100/F41<200,ROUND(G41*100/F41-100,1),ROUND(G41/F41,1)&" р"))) -> 2 р | I41: =Довідки1!H41 -> -14.3
A42: Направлено до суду кримінальних проваджень з обвинувальним актом (без повторних): | C42: про правопорушення, вчинені у складі ОГ та ЗО | E42: 35 | F42: 4 | G42: 2 | H42: -50 | I42: =Довідки1!H42 -> 0
C43: про корупційні правопорушення | E43: 36 | F43: 51 | G43: 69 | H43: 35.3 | I43: =Довідки1!H43 -> 42.4
C44: про правопорушення, вчинені у сфері земельних правовідносин | E44: 37 | F44: 3 | G44: 4 | H44: 33.3 | I44: =Довідки1!H44 -> 2 р
C45: про правопорушення, вчинені у бюджетній системі | E45: 38 | F45: 0 | G45: 3 | H45: 0 | I45: =Довідки1!H45 -> 0

Sheet Довідки4 (hidden)
A5: Таблиця 1. Робота слідчого апарату органів прокуратури
A6: за січень 2017 року
A7: Код | B7: Прокуратура | C7: Залишок незакінчених кримінальних проваджень на початок звітного періоду | F7: Розпочато кримінальних проваджень у звітному періоді | I7: відновлено розслідування у раніше закритих кримінальних провадженнях | L7: Закінчено кримінальних проваджень (з повторно закінченими) | O7: з них | R7: Направлено до суду | U7: Направлено до суду | AG7: Закрито кримінальних проваджень | AJ7: з них | AM7: Зупинено кримінальних проваджень | AP7: з них | AS7: Направлено кримінальних проваджень за підслідністю | AV7: Приєднано кримінальних проваджень до інших проваджень | AY7: Кількість підозрюваних, стосовно яких кримінальне провадження закрито прокурором на підставі п.п. 1-3 ст.284 КПК України | BB7: з них | BE7: Кількість обвинувачених та підозрюваних, стосовно яких провадження закрито за реабілітуючими підставами (за кримінальними справами, розслідуваними до 20.11.2012) | BH7: з них | BK7: Кількість виправданих і осіб, стосовно яких провадження закриті судом за реабілітуючими підставами | BN7: з них | BQ7: Кількість виправданих і осіб, стосовно яких справи закриті судом за відсутністю події або складу злочину і за недоведеністю обвинувачення (за справами, направленими до суду до 20.11.2012) | BT7: з них | BW7: Кількість осіб, стосовно яких провадження закриті судом у зв’язку з відмовою прокурора від підтримання державного обвинувачення | BZ7: з них | CC7: Залишок незакінчених кримінальних проваджень на кінець місяця | CF7: з них | CI7: Кількість осіб, які тримаються під вартою за незакінченими кримінальними провадженнями | CL7: з них | CO7: Повернуто кримінальних справ на додаткове розслідування | CR7: Повернуто обвинувальних актів, клопотань відповідно до п. 3 ч. 3ст. 314 КПК України | CU7: Направлено до суду кримінальних проваджень з обвинувальним актом (без повторних):
O8: закінчено проваджень у строки, понад 2 місяці | R8: проваджень з обвинувальним актом | U8: у т.ч.: з угодами про примирення | X8: у т.ч.: з угодами про визнання винуватості | AA8: клопотань про застосування примусових заходів медичного характеру | AD8: клопотань про звільнення підозрюваного від кримінальної відповідальності | AJ8: закрито прокурором | AP8: у зв'язку з не встановленням місцезнаходження підозрюваного | BB8: трималися під вартою | BH8: трималися під вартою | BN8: трималися під вартою | BT8: трималися під вартою | BZ8: трималися під вартою | CF8: з повідомленням особі про підозру у вчиненні кримінального правопорушення | CL8: зі строком тримання під вартою понад шістдесят днів | CU8: про правопорушення, вчинені в складі ОГ та ЗО | CX8: про корупційні правопорушення | DA8: про правопорушення, вчинені у сфері земельних правовідносин | DD8: про правопорушення, вчинені у бюджетній системі
C9: 2016 | D9: 2017 | E9: % | F9: =C9 -> 2016 | G9: =D9 -> 2017 | H9: % | I9: =F9 -> 2016 | J9: =G9 -> 2017 | K9: % | L9: =I9 -> 2016 | M9: =J9 -> 2017 | N9: % | O9: =L9 -> 2016 | P9: =M9 -> 2017 | Q9: % | R9: =O9 -> 2016 | S9: =P9 -> 2017 | T9: % | U9: =R9 -> 2016 | V9: =S9 -> 2017 | W9: % | X9: =U9 -> 2016 | Y9: =V9 -> 2017 | Z9: % | AA9: =X9 -> 2016 | AB9: =Y9 -> 2017 | AC9: % | AD9: =AA9 -> 2016 | AE9: =AB9 -> 2017 | AF9: % | AG9: =AD9 -> 2016 | AH9: =AE9 -> 2017 | AI9: % | AJ9: =AG9 -> 2016 | AK9: =AH9 -> 2017 | AL9: % | AM9: =AJ9 -> 2016 | AN9: =AK9 -> 2017 | AO9: % | AP9: =AM9 -> 2016 | AQ9: =AN9 -> 2017 | AR9: % | AS9: =AP9 -> 2016 | AT9: =AQ9 -> 2017 | AU9: % | AV9: =AS9 -> 2016 | AW9: =AT9 -> 2017 | AX9: % | AY9: =AV9 -> 2016 | AZ9: =AW9 -> 2017 | BA9: % | BB9: =AY9 -> 2016 | BC9: =AZ9 -> 2017 | BD9: % | BE9: =BB9 -> 2016 | BF9: =BC9 -> 2017 | BG9: % | BH9: =BE9 -> 2016 | BI9: =BF9 -> 2017 | BJ9: % | BK9: =BH9 -> 2016 | BL9: =BI9 -> 2017 | BM9: % | BN9: =BK9 -> 2016 | BO9: =BL9 -> 2017 | BP9: % | BQ9: =BN9 -> 2016 | BR9: =BO9 -> 2017 | BS9: % | BT9: =BQ9 -> 2016 | BU9: =BR9 -> 2017 | BV9: % | BW9: =BT9 -> 2016 | BX9: =BU9 -> 2017 | BY9: % | BZ9: =BW9 -> 2016 | CA9: =BX9 -> 2017 | CB9: % | CC9: =BZ9 -> 2016 | CD9: =CA9 -> 2017 | CE9: % | CF9: =CC9 -> 2016 | CG9: =CD9 -> 2017 | CH9: % | CI9: =CF9 -> 2016 | CJ9: =CG9 -> 2017 | CK9: % | CL9: =CI9 -> 2016 | CM9: =CJ9 -> 2017 | CN9: % | CO9: =CL9 -> 2016 | CP9: =CM9 -> 2017 | CQ9: % | CR9: =CO9 -> 2016 | CS9: =CP9 -> 2017 | CT9: % | CU9: =CR9 -> 2016 | CV9: =CS9 -> 2017 | CW9: % | CX9: =CU9 -> 2016 | CY9: =CV9 -> 2017 | CZ9: % | DA9: =CX9 -> 2016 | DB9: =CY9 -> 2017 | DC9: % | DD9: =DA9 -> 2016 | DE9: =DB9 -> 2017 | DF9: %
A10: 1 | B10: АР Крим | C10: 15 | D10: 31 | E10: =IF(C10=0,0,IF(D10=0,"-100,0",IF(D10*100/C10<200,ROUND(D10*100/C10-100,1),ROUND(D10/C10,1)&" р"))) -> 2,1 р | F10: 4 | G10: 19 | H10: =IF(F10=0,0,IF(G10=0,"-100,0",IF(G10*100/F10<200,ROUND(G10*100/F10-100,1),ROUND(G10/F10,1)&" р"))) -> 4,8 р | K10: =IF(I10=0,0,IF(J10=0,"-100,0",IF(J10*100/I10<200,ROUND(J10*100/I10-100,1),ROUND(J10/I10,1)&" р"))) -> 0 | L10: 1 | M10: 6 | N10: =IF(L10=0,0,IF(M10=0,"-100,0",IF(M10*100/L10<200,ROUND(M10*100/L10-100,1),ROUND(M10/L10,1)&" р"))) -> 6 р | P10: 3 | Q10: =IF(O10=0,0,IF(P10=0,"-100,0",IF(P10*100/O10<200,ROUND(P10*100/O10-100,1),ROUND(P10/O10,1)&" р"))) -> 0 | S10: 3 | T10: =IF(R10=0,0,IF(S10=0,"-100,0",IF(S10*100/R10<200,ROUND(S10*100/R10-100,1),ROUND(S10/R10,1)&" р"))) -> 0 | W10: =IF(U10=0,0,IF(V10=0,"-100,0",IF(V10*100/U10<200,ROUND(V10*100/U10-100,1),ROUND(V10/U10,1)&" р"))) -> 0 | Z10: =IF(X10=0,0,IF(Y10=0,"-100,0",IF(Y10*100/X10<200,ROUND(Y10*100/X10-100,1),ROUND(Y10/X10,1)&" р"))) -> 0 | AC10: =IF(AA10=0,0,IF(AB10=0,"-100,0",IF(AB10*100/AA10<200,ROUND(AB10*100/AA10-100,1),ROUND(AB10/AA10,1)&" р"))) -> 0 | AF10: =IF(AD10=0,0,IF(AE10=0,"-100,0",IF(AE10*100/AD10<200,ROUND(AE10*100/AD10-100,1),ROUND(AE10/AD10,1)&" р"))) -> 0 | AG10: 1 | AH10: 3 | AI10: =IF(AG10=0,0,IF(AH10=0,"-100,0",IF(AH10*100/AG10<200,ROUND(AH10*100/AG10-100,1),ROUND(AH10/AG10,1)&" р"))) -> 3 р | AL10: =IF(AJ10=0,0,IF(AK10=0,"-100,0",IF(AK10*100/AJ10<200,ROUND(AK10*100/AJ10-100,1),ROUND(AK10/AJ10,1)&" р"))) -> 0 | AN10: 9 | AO10: =IF(AM10=0,0,IF(AN10=0,"-100,0",IF(AN10*100/AM10<200,ROUND(AN10*100/AM10-100,1),ROUND(AN10/AM10,1)&" р"))) -> 0 | AQ10: 9 | AR10: =IF(AP10=0,0,IF(AQ10=0,"-100,0",IF(AQ10*100/AP10<200,ROUND(AQ10*100/AP10-100,1),ROUND(AQ10/AP10,1)&" р"))) -> 0 | AU10: =IF(AS10=0,0,IF(AT10=0,"-100,0",IF(AT10*100/AS10<200,ROUND(AT10*100/AS10-100,1),ROUND(AT10/AS10,1)&" р"))) -> 0 | AX10: =IF(AV10=0,0,IF(AW10=0,"-100,0",IF(AW10*100/AV10<200,ROUND(AW10*100/AV10-100,1),ROUND(AW10/AV10,1)&" р"))) -> 0 | BA10: =IF(AY10=0,0,IF(AZ10=0,"-100,0",IF(AZ10*100/AY10<200,ROUND(AZ10*100/AY10-100,1),ROUND(AZ10/AY10,1)&" р"))) -> 0 | BD10: =IF(BB10=0,0,IF(BC10=0,"-100,0",IF(BC10*100/BB10<200,ROUND(BC10*100/BB10-100,1),ROUND(BC10/BB10,1)&" р"))) -> 0 | BG10: =IF(BE10=0,0,IF(BF10=0,"-100,0",IF(BF10*100/BE10<200,ROUND(BF10*100/BE10-100,1),ROUND(BF10/BE10,1)&" р"))) -> 0 | BJ10: =IF(BH10=0,0,IF(BI10=0,"-100,0",IF(BI10*100/BH10<200,ROUND(BI10*100/BH10-100,1),ROUND(BI10/BH10,1)&" р"))) -> 0 | BM10: =IF(BK10=0,0,IF(BL10=0,"-100,0",IF(BL10*100/BK10<200,ROUND(BL10*100/BK10-100,1),ROUND(BL10/BK10,1)&" р"))) -> 0 | BP10: =IF(BN10=0,0,IF(BO10=0,"-100,0",IF(BO10*100/BN10<200,ROUND(BO10*100/BN10-100,1),ROUND(BO10/BN10,1)&" р"))) -> 0 | BS10: =IF(BQ10=0,0,IF(BR10=0,"-100,0",IF(BR10*100/BQ10<200,ROUND(BR10*100/BQ10-100,1),ROUND(BR10/BQ10,1)&" р"))) -> 0 | BV10: =IF(BT10=0,0,IF(BU10=0,"-100,0",IF(BU10*100/BT10<200,ROUND(BU10*100/BT10-100,1),ROUND(BU10/BT10,1)&" р"))) -> 0 | BY10: =IF(BW10=0,0,IF(BX10=0,"-100,0",IF(BX10*100/BW10<200,ROUND(BX10*100/BW10-100,1),ROUND(BX10/BW10,1)&" р"))) -> 0 | CB10: =IF(BZ10=0,0,IF(CA10=0,"-100,0",IF(CA10*100/BZ10<200,ROUND(CA10*100/BZ10-100,1),ROUND(CA10/BZ10,1)&" р"))) -> 0 | CC10: 18 | CD10: 35 | CE10: =IF(CC10=0,0,IF(CD10=0,"-100,0",IF(CD10*100/CC10<200,ROUND(CD10*100/CC10-100,1),ROUND(CD10/CC10,1)&" р"))) -> 94.4 | CF10: 1 | CG10: 2 | CH10: =IF(CF10=0,0,IF(CG10=0,"-100,0",IF(CG10*100/CF10<200,ROUND(CG10*100/CF10-100,1),ROUND(CG10/CF10,1)&" р"))) -> 2 р | CI10: 1 | CJ10: 1 | CK10: =IF(CI10=0,0,IF(CJ10=0,"-100,0",IF(CJ10*100/CI10<200,ROUND(CJ10*100/CI10-100,1),ROUND(CJ10/CI10,1)&" р"))) -> 0 | CN10: =IF(CL10=0,0,IF(CM10=0,"-100,0",IF(CM10*100/CL10<200,ROUND(CM10*100/CL10-100,1),ROUND(CM10/CL10,1)&" р"))) -> 0 | CQ10: =IF(CO10=0,0,IF(CP10=0,"-100,0",IF(CP10*100/CO10<200,ROUND(CP10*100/CO10-100,1),ROUND(CP10/CO10,1)&" р"))) -> 0 | CT10: =IF(CR10=0,0,IF(CS10=0,"-100,0",IF(CS10*100/CR10<200,ROUND(CS10*100/CR10-100,1),ROUND(CS10/CR10,1)&" р"))) -> 0 | CW10: =IF(CU10=0,0,IF(CV10=0,"-100,0",IF(CV10*100/CU10<200,ROUND(CV10*100/CU10-100,1),ROUND(CV10/CU10,1)&" р"))) -> 0 | CZ10: =IF(CX10=0,0,IF(CY10=0,"-100,0",IF(CY10*100/CX10<200,ROUND(CY10*100/CX10-100,1),ROUND(CY10/CX10,1)&" р"))) -> 0 | DC10: =IF(DA10=0,0,IF(DB10=0,"-100,0",IF(DB10*100/DA10<200,ROUND(DB10*100/DA10-100,1),ROUND(DB10/DA10,1)&" р"))) -> 0 | DF10: =IF(DD10=0,0,IF(DE10=0,"-100,0",IF(DE10*100/DD10<200,ROUND(DE10*100/DD10-100,1),ROUND(DE10/DD10,1)&" р"))) -> 0
A11: 2 | B11: Вінницької області | C11: 82 | D11: 94 | E11: 14.6 | F11: 30 | G11: 43 | H11: 43.3 | I11: 2 | J11: 1 | K11: -50 | L11: 15 | M11: 11 | N11: -26.7 | O11: 4 | P11: 3 | Q11: -25 | R11: 4 | S11: 4 | T11: 0 | W11: 0 | Z11: 0 | AC11: 0 | AF11: 0 | AG11: 11 | AH11: 7 | AI11: -36.4 | AL11: 0 | AO11: 0 | AR11: 0 | AS11: 3 | AT11: 1 | AU11: -66.7 | AV11: 4 | AW11: 19 | AX11: 4,8 р | BA11: 0 | BD11: 0 | BG11: 0 | BJ11: 0 | BM11: 0 | BP11: 0 | BS11: 0 | BV11: 0 | BY11: 0 | CB11: 0 | CC11: 90 | CD11: 106 | CE11: 17.8 | CF11: 4 | CG11: 3 | CH11: -25 | CJ11: 2 | CK11: 0 | CM11: 1 | CN11: 0 | CQ11: 0 | CT11: 0 | CW11: 0 | CX11: 1 | CZ11: -100,0 | DC11: 0 | DF11: 0
A12: 3 | B12: Волинської області | C12: 57 | D12: 51 | E12: -10.5 | F12: 19 | G12: 31 | H12: 63.2 | I12: 5 | J12: 7 | K12: 40 | L12: 7 | M12: 8 | N12: 14.3 | Q12: 0 | R12: 2 | S12: 3 | T12: 50 | W12: 0 | Y12: 1 | Z12: 0 | AC12: 0 | AF12: 0 | AG12: 5 | AH12: 5 | AI12: 0 | AL12: 0 | AO12: 0 | AR12: 0 | AS12: 1 | AT12: 1 | AU12: 0 | AV12: 2 | AW12: 4 | AX12: 2 р | BA12: 0 | BD12: 0 | BG12: 0 | BJ12: 0 | BM12: 0 | BP12: 0 | BS12: 0 | BV12: 0 | BY12: 0 | CB12: 0 | CC12: 66 | CD12: 69 | CE12: 4.5 | CF12: 2 | CG12: 6 | CH12: 3 р | CK12: 0 | CN12: 0 | CQ12: 0 | CT12: 0 | CW12: 0 | CY12: 1 | CZ12: 0 | DC12: 0 | DF12: 0
A13: 4 | B13: Дніпропетровської області | C13: 239 | D13: 228 | E13: -4.6 | F13: 108 | G13: 151 | H13: 39.8 | I13: 17 | J13: 14 | K13: -17.6 | L13: 58 | M13: 29 | N13: -50 | O13: 3 | Q13: -100,0 | R13: 6 | S13: 10 | T13: 66.7 | V13: 1 | W13: 0 | Z13: 0 | AC13: 0 | AF13: 0 | AG13: 52 | AH13: 19 | AI13: -63.5 | AL13: 0 | AM13: 5 | AO13: -100,0 | AP13: 5 | AR13: -100,0 | AS13: 2 | AT13: 6 | AU13: 3 р | AV13: 14 | AW13: 14 | AX13: 0 | BA13: 0 | BD13: 0 | BE13: 5 | BG13: -100,0 | BH13: 1 | BJ13: -100,0 | BM13: 0 | BP13: 0 | BS13: 0 | BV13: 0 | BY13: 0 | CB13: 0 | CC13: 268 | CD13: 330 | CE13: 23.1 | CF13: 6 | CG13: 11 | CH13: 83.3 | CI13: 1 | CJ13: 2 | CK13: 2 р | CL13: 1 | CN13: -100,0 | CQ13: 0 | CR13: 1 | CS13: 1 | CT13: 0 | CW13: 0 | CX13: 3 | CY13: 2 | CZ13: -33.3 | DB13: 1 | DC13: 0 | DF13: 0
A14: 5 | B14: Донецької області | C14: 166 | D14: 191 | E14: 15.1 | F14: 70 | G14: 138 | H14: 97.1 | I14: 6 | J14: 14 | K14: 2,3 р | L14: 48 | M14: 51 | N14: 6.3 | O14: 1 | Q14: -100,0 | R14: 7 | S14: 9 | T14: 28.6 | W14: 0 | X14: 4 | Y14: 3 | Z14: -25 | AC14: 0 | AE14: 1 | AF14: 0 | AG14: 41 | AH14: 41 | AI14: 0 | AL14: 0 | AM14: 1 | AN14: 2 | AO14: 2 р | AP14: 1 | AQ14: 2 | AR14: 2 р | AS14: 6 | AT14: 3 | AU14: -50 | AV14: 18 | AW14: 30 | AX14: 66.7 | BA14: 0 | BD14: 0 | BG14: 0 | BJ14: 0 | BM14: 0 | BP14: 0 | BS14: 0 | BV14: 0 | BY14: 0 | CB14: 0 | CC14: 163 | CD14: 243 | CE14: 49.1 | CF14: 12 | CG14: 14 | CH14: 16.7 | CI14: 8 | CJ14: 1 | CK14: -87.5 | CL14: 1 | CN14: -100,0 | CQ14: 0 | CS14: 1 | CT14: 0 | CW14: 0 | CX14: 1 | CY14: 3 | CZ14: 3 р | DC14: 0 | DF14: 0
A15: 6 | B15: Житомирської області | C15: 47 | D15: 54 | E15: 14.9 | F15: 20 | G15: 28 | H15: 40 | I15: 3 | J15: 3 | K15: 0 | L15: 14 | M15: 13 | N15: -7.1 | O15: 0 | P15: 2 | Q15: 0 | R15: 1 | S15: 4 | T15: 4 р | W15: 0 | Z15: 0 | AC15: 0 | AE15: 1 | AF15: 0 | AG15: 13 | AH15: 8 | AI15: -38.5 | AL15: 0 | AN15: 1 | AO15: 0 | AQ15: 1 | AR15: 0 | AU15: 0 | AW15: 11 | AX15: 0 | BA15: 0 | BD15: 0 | BG15: 0 | BJ15: 0 | BM15: 0 | BP15: 0 | BS15: 0 | BV15: 0 | BY15: 0 | CB15: 0 | CC15: 53 | CD15: 57 | CE15: 7.5 | CF15: 2 | CG15: 2 | CH15: 0 | CK15: 0 | CN15: 0 | CQ15: 0 | CT15: 0 | CV15: 1 | CW15: 0 | CY15: 2 | CZ15: 0 | DC15: 0 | DF15: 0
A16: 7 | B16: Закарпатської області | C16: 52 | D16: 63 | E16: 21.2 | F16: 31 | G16: 37 | H16: 19.4 | I16: 2 | J16: 5 | K16: 2,5 р | L16: 14 | M16: 9 | N16: -35.7 | O16: 1 | Q16: -100,0 | R16: 5 | S16: 3 | T16: -40 | W16: 0 | X16: 2 | Y16: 1 | Z16: -50 | AC16: 0 | AF16: 0 | AG16: 9 | AH16: 6 | AI16: -33.3 | AL16: 0 | AO16: 0 | AR16: 0 | AS16: 7 | AT16: 3 | AU16: -57.1 | AV16: 4 | AX16: -100,0 | BA16: 0 | BD16: 0 | BG16: 0 | BJ16: 0 | BM16: 0 | BP16: 0 | BS16: 0 | BV16: 0 | BY16: 0 | CB16: 0 | CC16: 58 | CD16: 88 | CE16: 51.7 | CF16: 2 | CG16: 3 | CH16: 50 | CJ16: 2 | CK16: 0 | CN16: 0 | CQ16: 0 | CT16: 0 | CW16: 0 | CX16: 4 | CY16: 2 | CZ16: -50 | DA16: 1 | DC16: -100,0 | DF16: 0
A17: 8 | B17: Запорізької області | C17: 109 | D17: 228 | E17: 2,1 р | F17: 37 | G17: 74 | H17: 2 р | I17: 2 | J17: 3 | K17: 50 | L17: 6 | M17: 23 | N17: 3,8 р | O17: 3 | P17: 2 | Q17: -33.3 | R17: 4 | S17: 4 | T17: 0 | U17: 1 | W17: -100,0 | X17: 1 | Z17: -100,0 | AC17: 0 | AF17: 0 | AG17: 2 | AH17: 19 | AI17: 9,5 р | AL17: 0 | AN17: 4 | AO17: 0 | AQ17: 4 | AR17: 0 | AS17: 1 | AT17: 3 | AU17: 3 р | AX17: 0 | BA17: 0 | BD17: 0 | BG17: 0 | BJ17: 0 | BM17: 0 | BP17: 0 | BS17: 0 | BV17: 0 | BY17: 0 | CB17: 0 | CC17: 139 | CD17: 272 | CE17: 95.7 | CF17: 5 | CG17: 11 | CH17: 2,2 р | CI17: 2 | CJ17: 1 | CK17: -50 | CN17: 0 | CO17: 1 | CQ17: -100,0 | CS17: 1 | CT17: 0 | CW17: 0 | CY17: 2 | CZ17: 0 | DC17: 0 | DF17: 0
A18: 9 | B18: Івано-Франківської області | C18: 40 | D18: 61 | E18: 52.5 | F18: 10 | G18: 12 | H18: 20 | I18: 1 | K18: -100,0 | L18: 5 | M18: 5 | N18: 0 | P18: 1 | Q18: 0 | R18: 1 | S18: 4 | T18: 4 р | W18: 0 | Y18: 1 | Z18: 0 | AC18: 0 | AF18: 0 | AG18: 4 | AH18: 1 | AI18: -75 | AL18: 0 | AM18: 1 | AO18: -100,0 | AR18: 0 | AS18: 2 | AU18: -100,0 | AW18: 3 | AX18: 0 | BA18: 0 | BD18: 0 | BG18: 0 | BJ18: 0 | BM18: 0 | BP18: 0 | BS18: 0 | BV18: 0 | BY18: 0 | CB18: 0 | CC18: 42 | CD18: 65 | CE18: 54.8 | CF18: 1 | CG18: 1 | CH18: 0 | CI18: 1 | CJ18: 2 | CK18: 2 р | CN18: 0 | CQ18: 0 | CT18: 0 | CU18: 1 | CW18: -100,0 | CX18: 1 | CY18: 3 | CZ18: 3 р | DA18: 1 | DB18: 1 | DC18: 0 | DF18: 0
A19: 10 | B19: Київської області | C19: 174 | D19: 318 | E19: 82.8 | F19: 71 | G19: 64 | H19: -9.9 | I19: 11 | J19: 2 | K19: -81.8 | L19: 14 | M19: 14 | N19: 0 | O19: 1 | Q19: -100,0 | R19: 6 | S19: 1 | T19: -83.3 | V19: 1 | W19: 0 | X19: 4 | Z19: -100,0 | AC19: 0 | AF19: 0 | AG19: 8 | AH19: 13 | AI19: 62.5 | AL19: 0 | AM19: 2 | AN19: 1 | AO19: -50 | AP19: 1 | AR19: -100,0 | AS19: 12 | AT19: 6 | AU19: -50 | AV19: 18 | AW19: 12 | AX19: -33.3 | BA19: 0 | BD19: 0 | BG19: 0 | BJ19: 0 | BM19: 0 | BP19: 0 | BS19: 0 | BV19: 0 | BY19: 0 | CB19: 0 | CC19: 199 | CD19: 349 | CE19: 75.4 | CF19: 13 | CG19: 6 | CH19: -53.8 | CJ19: 2 | CK19: 0 | CM19: 2 | CN19: 0 | CQ19: 0 | CT19: 0 | CW19: 0 | CX19: 3 | CZ19: -100,0 | DC19: 0 | DF19: 0
A20: 11 | B20: міста Києва | C20: 485 | D20: 345 | E20: -28.9 | F20: 191 | G20: 183 | H20: -4.2 | I20: 3 | J20: 60 | K20: 20 р | L20: 97 | M20: 93 | N20: -4.1 | Q20: 0 | R20: 3 | S20: 7 | T20: 2,3 р | U20: 0 | W20: 0 | X20: 1 | Z20: -100,0 | AA20: 0 | AC20: 0 | AD20: 0 | AF20: 0 | AG20: 94 | AH20: 86 | AI20: -8.5 | AJ20: 0 | AL20: 0 | AM20: 1 | AN20: 3 | AO20: 3 р | AP20: 1 | AQ20: 2 | AR20: 2 р | AS20: 9 | AT20: 2 | AU20: -77.8 | AV20: 13 | AW20: 35 | AX20: 2,7 р | AY20: 1 | BA20: -100,0 | BB20: 0 | BD20: 0 | BE20: 0 | BG20: 0 | BH20: 0 | BJ20: 0 | BK20: 0 | BM20: 0 | BN20: 0 | BP20: 0 | BQ20: 0 | BS20: 0 | BT20: 0 | BV20: 0 | BW20: 0 | BY20: 0 | BZ20: 0 | CB20: 0 | CC20: 556 | CD20: 395 | CE20: -29 | CF20: 25 | CG20: 23 | CH20: -8 | CI20: 2 | CJ20: 16 | CK20: 8 р | CM20: 10 | CN20: 0 | CQ20: 0 | CR20: 1 | CT20: -100,0 | CW20: 0 | CX20: 2 | CZ20: -100,0 | DC20: 0 | DF20: 0
A21: 12 | B21: Кіровоградської області | C21: 72 | D21: 76 | E21: 5.6 | F21: 16 | G21: 21 | H21: 31.3 | I21: 2 | J21: 3 | K21: 50 | L21: 13 | M21: 14 | N21: 7.7 | O21: 1 | P21: 2 | Q21: 2 р | R21: 1 | S21: 3 | T21: 3 р | W21: 0 | Z21: 0 | AC21: 0 | AF21: 0 | AG21: 12 | AH21: 11 | AI21: -8.3 | AK21: 0 | AL21: 0 | AM21: 1 | AN21: 0 | AO21: -100,0 | AR21: 0 | AS21: 1 | AT21: 0 | AU21: -100,0 | AV21: 4 | AW21: 3 | AX21: -25 | BA21: 0 | BD21: 0 | BG21: 0 | BJ21: 0 | BL21: 0 | BM21: 0 | BP21: 0 | BS21: 0 | BV21: 0 | BY21: 0 | CB21: 0 | CC21: 69 | CD21: 80 | CE21: 15.9 | CF21: 1 | CG21: 4 | CH21: 4 р | CJ21: 0 | CK21: 0 | CM21: 0 | CN21: 0 | CP21: 1 | CQ21: 0 | CR21: 1 | CT21: -100,0 | CV21: 1 | CW21: 0 | CY21: 2 | CZ21: 0 | DC21: 0 | DF21: 0
A22: 13 | B22: Луганської області | C22: 111 | D22: 79 | E22: -28.8 | F22: 16 | G22: 37 | H22: 2,3 р | I22: 2 | J22: 5 | K22: 2,5 р | L22: 5 | M22: 21 | N22: 4,2 р | O22: 1 | Q22: -100,0 | R22: 3 | S22: 9 | T22: 3 р | W22: 0 | Z22: 0 | AC22: 0 | AF22: 0 | AG22: 2 | AH22: 12 | AI22: 6 р | AL22: 0 | AN22: 10 | AO22: 0 | AQ22: 1 | AR22: 0 | AS22: 1 | AT22: 1 | AU22: 0 | AV22: 2 | AW22: 8 | AX22: 4 р | BA22: 0 | BD22: 0 | BG22: 0 | BJ22: 0 | BM22: 0 | BP22: 0 | BS22: 0 | BV22: 0 | BY22: 0 | CB22: 0 | CC22: 119 | CD22: 76 | CE22: -36.1 | CF22: 2 | CG22: 3 | CH22: 50 | CK22: 0 | CN22: 0 | CQ22: 0 | CT22: 0 | CW22: 0 | CX22: 1 | CY22: 3 | CZ22: 3 р | DC22: 0 | DF22: 0
A23: 14 | B23: Львівської області | C23: 42 | D23: 55 | E23: 31 | F23: 34 | G23: 55 | H23: 61.8 | I23: 2 | J23: 11 | K23: 5,5 р | L23: 10 | M23: 19 | N23: 90 | P23: 1 | Q23: 0 | R23: 2 | S23: 5 | T23: 2,5 р | W23: 0 | Y23: 1 | Z23: 0 | AC23: 0 | AF23: 0 | AG23: 8 | AH23: 14 | AI23: 75 | AL23: 0 | AM23: 2 | AO23: -100,0 | AP23: 1 | AR23: -100,0 | AT23: 3 | AU23: 0 | AV23: 5 | AW23: 10 | AX23: 2 р | BA23: 0 | BD23: 0 | BE23: 1 | BG23: -100,0 | BJ23: 0 | BM23: 0 | BP23: 0 | BS23: 0 | BV23: 0 | BY23: 0 | CB23: 0 | CC23: 59 | CD23: 78 | CE23: 32.2 | CF23: 2 | CG23: 5 | CH23: 2,5 р | CJ23: 5 | CK23: 0 | CN23: 0 | CO23: 1 | CQ23: -100,0 | CT23: 0 | CW23: 0 | CX23: 1 | CY23: 2 | CZ23: 2 р | DC23: 0 | DF23: 0
A24: 15 | B24: Миколаївської області | C24: 123 | D24: 167 | E24: 35.8 | F24: 43 | G24: 22 | H24: -48.8 | I24: 8 | J24: 3 | K24: -62.5 | L24: 8 | M24: 17 | N24: 2,1 р | O24: 1 | Q24: -100,0 | R24: 1 | S24: 2 | T24: 2 р | W24: 0 | Y24: 2 | Z24: 0 | AC24: 0 | AF24: 0 | AG24: 7 | AH24: 15 | AI24: 2,1 р | AL24: 0 | AM24: 1 | AN24: 1 | AO24: 0 | AQ24: 1 | AR24: 0 | AS24: 3 | AT24: 4 | AU24: 33.3 | AW24: 1 | AX24: 0 | BA24: 0 | BD24: 0 | BG24: 0 | BJ24: 0 | BM24: 0 | BP24: 0 | BS24: 0 | BV24: 0 | BY24: 0 | CB24: 0 | CC24: 154 | CD24: 166 | CE24: 7.8 | CF24: 3 | CG24: 8 | CH24: 2,7 р | CK24: 0 | CN24: 0 | CQ24: 0 | CT24: 0 | CW24: 0 | CY24: 1 | CZ24: 0 | DC24: 0 | DF24: 0
A25: 16 | B25: Одеської області | C25: 273 | D25: 271 | E25: -0.7 | F25: 83 | G25: 141 | H25: 69.9 | I25: 14 | J25: 7 | K25: -50 | L25: 24 | M25: 43 | N25: 79.2 | O25: 1 | P25: 2 | Q25: 2 р | R25: 1 | S25: 6 | T25: 6 р | W25: 0 | Z25: 0 | AC25: 0 | AF25: 0 | AG25: 23 | AH25: 37 | AI25: 60.9 | AL25: 0 | AM25: 1 | AN25: 1 | AO25: 0 | AP25: 1 | AQ25: 1 | AR25: 0 | AU25: 0 | AV25: 10 | AW25: 39 | AX25: 3,9 р | BA25: 0 | BD25: 0 | BG25: 0 | BJ25: 0 | BM25: 0 | BP25: 0 | BR25: 1 | BS25: 0 | BV25: 0 | BY25: 0 | CB25: 0 | CC25: 321 | CD25: 329 | CE25: 2.5 | CF25: 17 | CG25: 13 | CH25: -23.5 | CI25: 8 | CK25: -100,0 | CL25: 5 | CN25: -100,0 | CQ25: 0 | CS25: 2 | CT25: 0 | CW25: 0 | CX25: 1 | CY25: 3 | CZ25: 3 р | DC25: 0 | DF25: 0
A26: 17 | B26: Полтавської області | C26: 55 | D26: 69 | E26: 25.5 | F26: 35 | G26: 37 | H26: 5.7 | I26: 9 | J26: 8 | K26: -11.1 | L26: 11 | M26: 16 | N26: 45.5 | O26: 1 | P26: 1 | Q26: 0 | R26: 3 | S26: 6 | T26: 2 р | W26: 0 | X26: 1 | Y26: 1 | Z26: 0 | AC26: 0 | AF26: 0 | AG26: 8 | AH26: 10 | AI26: 25 | AL26: 0 | AM26: 1 | AO26: -100,0 | AP26: 1 | AR26: -100,0 | AT26: 3 | AU26: 0 | AX26: 0 | BA26: 0 | BD26: 0 | BG26: 0 | BJ26: 0 | BK26: 1 | BM26: -100,0 | BP26: 0 | BS26: 0 | BV26: 0 | BY26: 0 | CB26: 0 | CC26: 78 | CD26: 87 | CE26: 11.5 | CF26: 2 | CG26: 4 | CH26: 2 р | CK26: 0 | CN26: 0 | CQ26: 0 | CT26: 0 | CW26: 0 | CX26: 1 | CY26: 2 | CZ26: 2 р | DC26: 0 | DF26: 0
A27: 18 | B27: Рівненської області | C27: 41 | D27: 39 | E27: -4.9 | F27: 26 | G27: 22 | H27: -15.4 | I27: 2 | J27: 5 | K27: 2,5 р | L27: 8 | M27: 17 | N27: 2,1 р | O27: 1 | Q27: -100,0 | R27: 4 | S27: 4 | T27: 0 | W27: 0 | X27: 2 | Y27: 1 | Z27: -50 | AC27: 0 | AF27: 0 | AG27: 4 | AH27: 13 | AI27: 3,3 р | AL27: 0 | AO27: 0 | AR27: 0 | AT27: 2 | AU27: 0 | AV27: 4 | AX27: -100,0 | BA27: 0 | BD27: 0 | BG27: 0 | BJ27: 0 | BM27: 0 | BP27: 0 | BS27: 0 | BV27: 0 | BY27: 0 | CB27: 0 | CC27: 55 | CD27: 42 | CE27: -23.6 | CF27: 5 | CH27: -100,0 | CK27: 0 | CN27: 0 | CQ27: 0 | CR27: 2 | CT27: -100,0 | CW27: 0 | CY27: 2 | CZ27: 0 | DC27: 0 | DF27: 0
A28: 19 | B28: Сумської області | C28: 68 | D28: 76 | E28: 11.8 | F28: 23 | G28: 38 | H28: 65.2 | I28: 5 | J28: 5 | K28: 0 | L28: 9 | M28: 13 | N28: 44.4 | P28: 2 | Q28: 0 | R28: 3 | S28: 6 | T28: 2 р | U28: 1 | W28: -100,0 | X28: 1 | Z28: -100,0 | AC28: 0 | AF28: 0 | AG28: 6 | AH28: 7 | AI28: 16.7 | AL28: 0 | AM28: 2 | AO28: -100,0 | AP28: 1 | AR28: -100,0 | AS28: 1 | AT28: 1 | AU28: 0 | AW28: 2 | AX28: 0 | BA28: 0 | BD28: 0 | BG28: 0 | BJ28: 0 | BM28: 0 | BP28: 0 | BS28: 0 | BV28: 0 | BY28: 0 | CB28: 0 | CC28: 79 | CD28: 98 | CE28: 24.1 | CF28: 7 | CG28: 5 | CH28: -28.6 | CK28: 0 | CN28: 0 | CQ28: 0 | CT28: 0 | CW28: 0 | CY28: 4 | CZ28: 0 | DB28: 1 | DC28: 0 | DE28: 2 | DF28: 0
A29: 20 | B29: Тернопільської області | C29: 39 | D29: 53 | E29: 35.9 | F29: 10 | G29: 30 | H29: 3 р | I29: 3 | J29: 4 | K29: 33.3 | L29: 10 | M29: 8 | N29: -20 | O29: 1 | Q29: -100,0 | R29: 1 | S29: 2 | T29: 2 р | W29: 0 | Z29: 0 | AC29: 0 | AF29: 0 | AG29: 9 | AH29: 6 | AI29: -33.3 | AL29: 0 | AO29: 0 | AR29: 0 | AS29: 1 | AT29: 3 | AU29: 3 р | AW29: 4 | AX29: 0 | BA29: 0 | BD29: 0 | BG29: 0 | BJ29: 0 | BM29: 0 | BP29: 0 | BS29: 0 | BV29: 0 | BY29: 0 | CB29: 0 | CC29: 38 | CD29: 68 | CE29: 78.9 | CF29: 1 | CG29: 2 | CH29: 2 р | CK29: 0 | CN29: 0 | CQ29: 0 | CR29: 1 | CS29: 1 | CT29: 0 | CW29: 0 | CX29: 1 | CZ29: -100,0 | DC29: 0 | DF29: 0
A30: 21 | B30: Харківської області | C30: 264 | D30: 313 | E30: 18.6 | F30: 201 | G30: 121 | H30: -39.8 | I30: 62 | J30: 31 | K30: -50 | L30: 95 | M30: 25 | N30: -73.7 | O30: 1 | Q30: -100,0 | R30: 2 | S30: 10 | T30: 5 р | W30: 0 | X30: 1 | Y30: 2 | Z30: 2 р | AC30: 0 | AF30: 0 | AG30: 93 | AH30: 15 | AI30: -83.9 | AL30: 0 | AM30: 1 | AN30: 2 | AO30: 2 р | AP30: 1 | AR30: -100,0 | AS30: 14 | AT30: 1 | AU30: -92.9 | AV30: 35 | AW30: 4 | AX30: -88.6 | BA30: 0 | BD30: 0 | BG30: 0 | BJ30: 0 | BM30: 0 | BP30: 0 | BS30: 0 | BV30: 0 | BY30: 0 | CB30: 0 | CC30: 320 | CD30: 402 | CE30: 25.6 | CF30: 5 | CG30: 7 | CH30: 40 | CK30: 0 | CN30: 0 | CQ30: 0 | CT30: 0 | CW30: 0 | CX30: 2 | CY30: 3 | CZ30: 50 | DC30: 0 | DF30: 0
A31: 22 | B31: Херсонської області | C31: 63 | D31: 71 | E31: 12.7 | F31: 27 | G31: 31 | H31: 14.8 | I31: 6 | J31: 6 | K31: 0 | L31: 20 | M31: 13 | N31: -35 | Q31: 0 | R31: 1 | T31: -100,0 | W31: 0 | Z31: 0 | AC31: 0 | AF31: 0 | AG31: 19 | AH31: 13 | AI31: -31.6 | AL31: 0 | AO31: 0 | AR31: 0 | AS31: 5 | AU31: -100,0 | AV31: 6 | AW31: 3 | AX31: -50 | BA31: 0 | BD31: 0 | BG31: 0 | BJ31: 0 | BM31: 0 | BP31: 0 | BS31: 0 | BV31: 0 | BY31: 0 | CB31: 0 | CC31: 59 | CD31: 86 | CE31: 45.8 | CF31: 5 | CG31: 5 | CH31: 0 | CJ31: 1 | CK31: 0 | CN31: 0 | CQ31: 0 | CT31: 0 | CW31: 0 | CZ31: 0 | DC31: 0 | DF31: 0
A32: 23 | B32: Хмельницької області | C32: 51 | D32: 65 | E32: 27.5 | F32: 7 | G32: 17 | H32: 2,4 р | I32: 1 | J32: 4 | K32: 4 р | L32: 11 | M32: 2 | N32: -81.8 | O32: 3 | Q32: -100,0 | R32: 5 | S32: 2 | T32: -60 | W32: 0 | Z32: 0 | AC32: 0 | AF32: 0 | AG32: 6 | AI32: -100,0 | AL32: 0 | AM32: 1 | AO32: -100,0 | AR32: 0 | AT32: 1 | AU32: 0 | AW32: 4 | AX32: 0 | BA32: 0 | BD32: 0 | BG32: 0 | BJ32: 0 | BM32: 0 | BP32: 0 | BS32: 0 | BV32: 0 | BY32: 0 | CB32: 0 | CC32: 46 | CD32: 75 | CE32: 63 | CF32: 4 | CH32: -100,0 | CK32: 0 | CN32: 0 | CQ32: 0 | CR32: 1 | CT32: -100,0 | CW32: 0 | CX32: 2 | CY32: 2 | CZ32: 0 | DC32: 0 | DF32: 0
A33: 24 | B33: Черкаської області | C33: 96 | D33: 82 | E33: -14.6 | F33: 24 | G33: 24 | H33: 0 | I33: 8 | J33: 11 | K33: 37.5 | L33: 25 | M33: 13 | N33: -48 | P33: 1 | Q33: 0 | R33: 5 | S33: 3 | T33: -40 | W33: 0 | Z33: 0 | AC33: 0 | AF33: 0 | AG33: 20 | AH33: 10 | AI33: -50 | AL33: 0 | AN33: 1 | AO33: 0 | AR33: 0 | AS33: 1 | AT33: 1 | AU33: 0 | AV33: 1 | AW33: 2 | AX33: 2 р | BA33: 0 | BD33: 0 | BG33: 0 | BJ33: 0 | BM33: 0 | BP33: 0 | BS33: 0 | BV33: 0 | BY33: 0 | CB33: 0 | CC33: 93 | CD33: 89 | CE33: -4.3 | CG33: 1 | CH33: 0 | CK33: 0 | CN33: 0 | CQ33: 0 | CT33: 0 | CW33: 0 | CY33: 3 | CZ33: 0 | DC33: 0 | DF33: 0
A34: 25 | B34: Чернівецької області | C34: 50 | D34: 81 | E34: 62 | F34: 25 | G34: 22 | H34: -12 | I34: 4 | J34: 4 | K34: 0 | L34: 7 | M34: 10 | N34: 42.9 | O34: 1 | P34: 2 | Q34: 2 р | R34: 3 | S34: 6 | T34: 2 р | W34: 0 | Y34: 3 | Z34: 0 | AC34: 0 | AF34: 0 | AG34: 4 | AH34: 4 | AI34: 0 | AL34: 0 | AO34: 0 | AR34: 0 | AS34: 2 | AU34: -100,0 | AV34: 6 | AW34: 3 | AX34: -50 | BA34: 0 | BD34: 0 | BG34: 0 | BJ34: 0 | BM34: 0 | BP34: 0 | BS34: 0 | BV34: 0 | BY34: 0 | CB34: 0 | CC34: 60 | CD34: 90 | CE34: 50 | CF34: 2 | CG34: 1 | CH34: -50 | CK34: 0 | CN34: 0 | CQ34: 0 | CT34: 0 | CW34: 0 | CX34: 3 | CY34: 1 | CZ34: -66.7 | DC34: 0 | DF34: 0
A35: 26 | B35: Чернігівської області | C35: 52 | D35: 89 | E35: 71.2 | F35: 27 | G35: 36 | H35: 33.3 | I35: 5 | J35: 13 | K35: 2,6 р | L35: 10 | M35: 19 | N35: 90 | P35: 1 | Q35: 0 | R35: 3 | S35: 1 | T35: -66.7 | W35: 0 | Z35: 0 | AC35: 0 | AF35: 0 | AG35: 7 | AH35: 18 | AI35: 2,6 р | AL35: 0 | AM35: 1 | AO35: -100,0 | AR35: 0 | AS35: 2 | AT35: 4 | AU35: 2 р | AW35: 6 | AX35: 0 | BA35: 0 | BD35: 0 | BG35: 0 | BJ35: 0 | BM35: 0 | BP35: 0 | BS35: 0 | BV35: 0 | BY35: 0 | CB35: 0 | CC35: 66 | CD35: 96 | CE35: 45.5 | CF35: 6 | CG35: 3 | CH35: -50 | CI35: 4 | CK35: -100,0 | CL35: 2 | CN35: -100,0 | CQ35: 0 | CT35: 0 | CW35: 0 | CX35: 1 | CY35: 1 | CZ35: 0 | DB35: 1 | DC35: 0 | DF35: 0
A36: 27 | B36: Усього (без ЦА) | C36: 2866 | D36: 3250 | E36: 13.4 | F36: 1188 | G36: 1434 | H36: 20.7 | I36: 185 | J36: 229 | K36: 23.8 | L36: 545 | M36: 512 | N36: -6.1 | O36: 25 | P36: 23 | Q36: -8 | R36: 77 | S36: 117 | T36: 51.9 | U36: 2 | V36: 2 | W36: 0 | X36: 17 | Y36: 16 | Z36: -5.9 | AA36: 0 | AB36: 0 | AC36: 0 | AD36: 0 | AE36: 2 | AF36: 0 | AG36: 468 | AH36: 393 | AI36: -16 | AJ36: 0 | AK36: 0 | AL36: 0 | AM36: 21 | AN36: 35 | AO36: 66.7 | AP36: 13 | AQ36: 21 | AR36: 61.5 | AS36: 74 | AT36: 49 | AU36: -33.8 | AV36: 146 | AW36: 217 | AX36: 48.6 | AY36: 1 | AZ36: 0 | BA36: -100,0 | BB36: 0 | BC36: 0 | BD36: 0 | BE36: 6 | BF36: 0 | BG36: -100,0 | BH36: 1 | BI36: 0 | BJ36: -100,0 | BK36: 1 | BL36: 0 | BM36: -100,0 | BN36: 0 | BO36: 0 | BP36: 0 | BQ36: 0 | BR36: 1 | BS36: 0 | BT36: 0 | BU36: 0 | BV36: 0 | BW36: 0 | BX36: 0 | BY36: 0 | BZ36: 0 | CA36: 0 | CB36: 0 | CC36: 3268 | CD36: 3871 | CE36: 18.5 | CF36: 135 | CG36: 143 | CH36: 5.9 | CI36: 27 | CJ36: 35 | CK36: 29.6 | CL36: 9 | CM36: 13 | CN36: 44.4 | CO36: 2 | CP36: 1 | CQ36: -50 | CR36: 7 | CS36: 6 | CT36: -14.3 | CU36: 1 | CV36: 2 | CW36: 2 р | CX36: 28 | CY36: 44 | CZ36: 57.1 | DA36: 2 | DB36: 4 | DC36: 2 р | DD36: 0 | DE36: 2 | DF36: 0
A37: 28 | B37: Центральний апарат | C37: 347 | D37: 548 | E37: 57.9 | F37: 104 | G37: 239 | H37: 2,3 р | I37: 1 | J37: 5 | K37: 5 р | L37: 11 | M37: 39 | N37: 3,5 р | O37: 7 | P37: 29 | Q37: 4,1 р | R37: 9 | S37: 33 | T37: 3,7 р | U37: 0 | V37: 1 | W37: 0 | X37: 0 | Y37: 2 | Z37: 0 | AA37: 0 | AB37: 0 | AC37: 0 | AD37: 0 | AE37: 0 | AF37: 0 | AG37: 2 | AH37: 6 | AI37: 3 р | AJ37: 0 | AK37: 0 | AL37: 0 | AM37: 6 | AN37: 46 | AO37: 7,7 р | AP37: 6 | AQ37: 44 | AR37: 7,3 р | AS37: 15 | AT37: 40 | AU37: 2,7 р | AV37: 46 | AW37: 111 | AX37: 2,4 р | AY37: 0 | AZ37: 0 | BA37: 0 | BB37: 0 | BC37: 0 | BD37: 0 | BE37: 0 | BF37: 0 | BG37: 0 | BH37: 0 | BI37: 0 | BJ37: 0 | BK37: 0 | BL37: 0 | BM37: 0 | BN37: 0 | BO37: 0 | BP37: 0 | BQ37: 0 | BR37: 0 | BS37: 0 | BT37: 0 | BU37: 0 | BV37: 0 | BW37: 0 | BX37: 0 | BY37: 0 | BZ37: 0 | CA37: 0 | CB37: 0 | CC37: 373 | CD37: 551 | CE37: 47.7 | CF37: 37 | CG37: 50 | CH37: 35.1 | CI37: 12 | CJ37: 16 | CK37: 33.3 | CL37: 11 | CM37: 12 | CN37: 9.1 | CO37: 0 | CP37: 0 | CQ37: 0 | CR37: 0 | CS37: 0 | CT37: 0 | CU37: 1 | CV37: 0 | CW37: -100,0 | CX37: 5 | CY37: 3 | CZ37: -40 | DA37: 0 | DB37: 0 | DC37: 0 | DD37: 0 | DE37: 0 | DF37: 0
A38: 29 | B38: №17 | C38: 294 | D38: 228 | E38: -22.4 | F38: 73 | G38: 91 | H38: 24.7 | I38: 1 | J38: 4 | K38: 4 р | L38: 4 | M38: 9 | N38: 2,3 р | O38: 2 | P38: 2 | Q38: 0 | R38: 4 | S38: 5 | T38: 25 | W38: 0 | Y38: 2 | Z38: 0 | AC38: 0 | AF38: 0 | AH38: 4 | AI38: 0 | AL38: 0 | AM38: 6 | AN38: 28 | AO38: 4,7 р | AP38: 6 | AQ38: 27 | AR38: 4,5 р | AS38: 7 | AT38: 2 | AU38: -71.4 | AV38: 31 | AW38: 14 | AX38: -54.8 | BA38: 0 | BD38: 0 | BG38: 0 | BJ38: 0 | BM38: 0 | BP38: 0 | BS38: 0 | BV38: 0 | BY38: 0 | CB38: 0 | CC38: 319 | CD38: 266 | CE38: -16.6 | CF38: 31 | CG38: 18 | CH38: -41.9 | CI38: 12 | CJ38: 4 | CK38: -66.7 | CL38: 11 | CM38: 3 | CN38: -72.7 | CQ38: 0 | CT38: 0 | CW38: 0 | CX38: 1 | CY38: 2 | CZ38: 2 р | DC38: 0 | DF38: 0
A39: 30 | B39: №26 | C39: 13 | D39: 17 | E39: =IF(C39=0,0,IF(D39=0,"-100,0",IF(D39*100/C39<200,ROUND(D39*100/C39-100,1),ROUND(D39/C39,1)&" р"))) -> 30.8 | F39: 3 | G39: 34 | H39: =IF(F39=0,0,IF(G39=0,"-100,0",IF(G39*100/F39<200,ROUND(G39*100/F39-100,1),ROUND(G39/F39,1)&" р"))) -> 11,3 р | K39: =IF(I39=0,0,IF(J39=0,"-100,0",IF(J39*100/I39<200,ROUND(J39*100/I39-100,1),ROUND(J39/I39,1)&" р"))) -> 0 | M39: 22 | N39: =IF(L39=0,0,IF(M39=0,"-100,0",IF(M39*100/L39<200,ROUND(M39*100/L39-100,1),ROUND(M39/L39,1)&" р"))) -> 0 | P39: 22 | Q39: =IF(O39=0,0,IF(P39=0,"-100,0",IF(P39*100/O39<200,ROUND(P39*100/O39-100,1),ROUND(P39/O39,1)&" р"))) -> 0 | S39: 22 | T39: =IF(R39=0,0,IF(S39=0,"-100,0",IF(S39*100/R39<200,ROUND(S39*100/R39-100,1),ROUND(S39/R39,1)&" р"))) -> 0 | W39: =IF(U39=0,0,IF(V39=0,"-100,0",IF(V39*100/U39<200,ROUND(V39*100/U39-100,1),ROUND(V39/U39,1)&" р"))) -> 0 | Z39: =IF(X39=0,0,IF(Y39=0,"-100,0",IF(Y39*100/X39<200,ROUND(Y39*100/X39-100,1),ROUND(Y39/X39,1)&" р"))) -> 0 | AC39: =IF(AA39=0,0,IF(AB39=0,"-100,0",IF(AB39*100/AA39<200,ROUND(AB39*100/AA39-100,1),ROUND(AB39/AA39,1)&" р"))) -> 0 | AF39: =IF(AD39=0,0,IF(AE39=0,"-100,0",IF(AE39*100/AD39<200,ROUND(AE39*100/AD39-100,1),ROUND(AE39/AD39,1)&" р"))) -> 0 | AI39: =IF(AG39=0,0,IF(AH39=0,"-100,0",IF(AH39*100/AG39<200,ROUND(AH39*100/AG39-100,1),ROUND(AH39/AG39,1)&" р"))) -> 0 | AL39: =IF(AJ39=0,0,IF(AK39=0,"-100,0",IF(AK39*100/AJ39<200,ROUND(AK39*100/AJ39-100,1),ROUND(AK39/AJ39,1)&" р"))) -> 0 | AN39: 13 | AO39: =IF(AM39=0,0,IF(AN39=0,"-100,0",IF(AN39*100/AM39<200,ROUND(AN39*100/AM39-100,1),ROUND(AN39/AM39,1)&" р"))) -> 0 | AQ39: 13 | AR39: =IF(AP39=0,0,IF(AQ39=0,"-100,0",IF(AQ39*100/AP39<200,ROUND(AQ39*100/AP39-100,1),ROUND(AQ39/AP39,1)&" р"))) -> 0 | AU39: =IF(AS39=0,0,IF(AT39=0,"-100,0",IF(AT39*100/AS39<200,ROUND(AT39*100/AS39-100,1),ROUND(AT39/AS39,1)&" р"))) -> 0 | AX39: =IF(AV39=0,0,IF(AW39=0,"-100,0",IF(AW39*100/AV39<200,ROUND(AW39*100/AV39-100,1),ROUND(AW39/AV39,1)&" р"))) -> 0 | BA39: =IF(AY39=0,0,IF(AZ39=0,"-100,0",IF(AZ39*100/AY39<200,ROUND(AZ39*100/AY39-100,1),ROUND(AZ39/AY39,1)&" р"))) -> 0 | BD39: =IF(BB39=0,0,IF(BC39=0,"-100,0",IF(BC39*100/BB39<200,ROUND(BC39*100/BB39-100,1),ROUND(BC39/BB39,1)&" р"))) -> 0 | BG39: =IF(BE39=0,0,IF(BF39=0,"-100,0",IF(BF39*100/BE39<200,ROUND(BF39*100/BE39-100,1),ROUND(BF39/BE39,1)&" р"))) -> 0 | BJ39: =IF(BH39=0,0,IF(BI39=0,"-100,0",IF(BI39*100/BH39<200,ROUND(BI39*100/BH39-100,1),ROUND(BI39/BH39,1)&" р"))) -> 0 | BM39: =IF(BK39=0,0,IF(BL39=0,"-100,0",IF(BL39*100/BK39<200,ROUND(BL39*100/BK39-100,1),ROUND(BL39/BK39,1)&" р"))) -> 0 | BP39: =IF(BN39=0,0,IF(BO39=0,"-100,0",IF(BO39*100/BN39<200,ROUND(BO39*100/BN39-100,1),ROUND(BO39/BN39,1)&" р"))) -> 0 | BS39: =IF(BQ39=0,0,IF(BR39=0,"-100,0",IF(BR39*100/BQ39<200,ROUND(BR39*100/BQ39-100,1),ROUND(BR39/BQ39,1)&" р"))) -> 0 | BV39: =IF(BT39=0,0,IF(BU39=0,"-100,0",IF(BU39*100/BT39<200,ROUND(BU39*100/BT39-100,1),ROUND(BU39/BT39,1)&" р"))) -> 0 | BY39: =IF(BW39=0,0,IF(BX39=0,"-100,0",IF(BX39*100/BW39<200,ROUND(BX39*100/BW39-100,1),ROUND(BX39/BW39,1)&" р"))) -> 0 | CB39: =IF(BZ39=0,0,IF(CA39=0,"-100,0",IF(CA39*100/BZ39<200,ROUND(CA39*100/BZ39-100,1),ROUND(CA39/BZ39,1)&" р"))) -> 0 | CC39: 16 | CD39: 16 | CE39: =IF(CC39=0,0,IF(CD39=0,"-100,0",IF(CD39*100/CC39<200,ROUND(CD39*100/CC39-100,1),ROUND(CD39/CC39,1)&" р"))) -> 0 | CF39: 1 | CG39: 4 | CH39: =IF(CF39=0,0,IF(CG39=0,"-100,0",IF(CG39*100/CF39<200,ROUND(CG39*100/CF39-100,1),ROUND(CG39/CF39,1)&" р"))) -> 4 р | CK39: =IF(CI39=0,0,IF(CJ39=0,"-100,0",IF(CJ39*100/CI39<200,ROUND(CJ39*100/CI39-100,1),ROUND(CJ39/CI39,1)&" р"))) -> 0 | CN39: =IF(CL39=0,0,IF(CM39=0,"-100,0",IF(CM39*100/CL39<200,ROUND(CM39*100/CL39-100,1),ROUND(CM39/CL39,1)&" р"))) -> 0 | CQ39: =IF(CO39=0,0,IF(CP39=0,"-100,0",IF(CP39*100/CO39<200,ROUND(CP39*100/CO39-100,1),ROUND(CP39/CO39,1)&" р"))) -> 0 | CT39: =IF(CR39=0,0,IF(CS39=0,"-100,0",IF(CS39*100/CR39<200,ROUND(CS39*100/CR39-100,1),ROUND(CS39/CR39,1)&" р"))) -> 0 | CW39: =IF(CU39=0,0,IF(CV39=0,"-100,0",IF(CV39*100/CU39<200,ROUND(CV39*100/CU39-100,1),ROUND(CV39/CU39,1)&" р"))) -> 0 | CZ39: =IF(CX39=0,0,IF(CY39=0,"-100,0",IF(CY39*100/CX39<200,ROUND(CY39*100/CX39-100,1),ROUND(CY39/CX39,1)&" р"))) -> 0 | DC39: =IF(DA39=0,0,IF(DB39=0,"-100,0",IF(DB39*100/DA39<200,ROUND(DB39*100/DA39-100,1),ROUND(DB39/DA39,1)&" р"))) -> 0 | DF39: =IF(DD39=0,0,IF(DE39=0,"-100,0",IF(DE39*100/DD39<200,ROUND(DE39*100/DD39-100,1),ROUND(DE39/DD39,1)&" р"))) -> 0
A40: 31 | B40: №07 | C40: 21 | E40: -100,0 | F40: 20 | H40: -100,0 | K40: 0 | L40: 4 | N40: -100,0 | O40: 3 | Q40: -100,0 | R40: 3 | T40: -100,0 | W40: 0 | Z40: 0 | AC40: 0 | AF40: 0 | AG40: 1 | AI40: -100,0 | AL40: 0 | AO40: 0 | AR40: 0 | AS40: 5 | AU40: -100,0 | AV40: 14 | AX40: -100,0 | BA40: 0 | BD40: 0 | BG40: 0 | BJ40: 0 | BM40: 0 | BP40: 0 | BS40: 0 | BV40: 0 | BY40: 0 | CB40: 0 | CC40: 18 | CE40: -100,0 | CF40: 2 | CH40: -100,0 | CK40: 0 | CN40: 0 | CQ40: 0 | CT40: 0 | CU40: 1 | CW40: -100,0 | CX40: 2 | CZ40: -100,0 | DC40: 0 | DF40: 0
A41: 32 | B41: №07/1 | D41: 93 | E41: 0 | G41: 35 | H41: 0 | J41: 1 | K41: 0 | M41: 2 | N41: 0 | Q41: 0 | S41: 1 | T41: 0 | W41: 0 | Z41: 0 | AC41: 0 | AF41: 0 | AH41: 1 | AI41: 0 | AL41: 0 | AO41: 0 | AR41: 0 | AT41: 2 | AU41: 0 | AW41: 12 | AX41: 0 | BA41: 0 | BD41: 0 | BG41: 0 | BJ41: 0 | BM41: 0 | BP41: 0 | BS41: 0 | BV41: 0 | BY41: 0 | CB41: 0 | CD41: 112 | CE41: 0 | CG41: 13 | CH41: 0 | CJ41: 8 | CK41: 0 | CM41: 7 | CN41: 0 | CQ41: 0 | CT41: 0 | CW41: 0 | CZ41: 0 | DC41: 0 | DF41: 0
A42: 33 | B42: №29 | C42: 19 | E42: -100,0 | F42: 8 | H42: -100,0 | K42: 0 | L42: 3 | N42: -100,0 | O42: 2 | Q42: -100,0 | R42: 2 | T42: -100,0 | W42: 0 | Z42: 0 | AC42: 0 | AF42: 0 | AG42: 1 | AI42: -100,0 | AL42: 0 | AO42: 0 | AR42: 0 | AS42: 3 | AU42: -100,0 | AV42: 1 | AX42: -100,0 | BA42: 0 | BD42: 0 | BG42: 0 | BJ42: 0 | BM42: 0 | BP42: 0 | BS42: 0 | BV42: 0 | BY42: 0 | CB42: 0 | CC42: 20 | CE42: -100,0 | CF42: 3 | CH42: -100,0 | CK42: 0 | CN42: 0 | CQ42: 0 | CT42: 0 | CW42: 0 | CX42: 2 | CZ42: -100,0 | DC42: 0 | DF42: 0
A43: 34 | B43: №29/1 | D43: 33 | AT43: 33
A44: 35 | B44: №23 | D44: 155 | E44: =IF(C44=0,0,IF(D44=0,"-100,0",IF(D44*100/C44<200,ROUND(D44*100/C44-100,1),ROUND(D44/C44,1)&" р"))) -> 0 | G44: 24 | H44: =IF(F44=0,0,IF(G44=0,"-100,0",IF(G44*100/F44<200,ROUND(G44*100/F44-100,1),ROUND(G44/F44,1)&" р"))) -> 0 | K44: =IF(I44=0,0,IF(J44=0,"-100,0",IF(J44*100/I44<200,ROUND(J44*100/I44-100,1),ROUND(J44/I44,1)&" р"))) -> 0 | M44: 4 | N44: =IF(L44=0,0,IF(M44=0,"-100,0",IF(M44*100/L44<200,ROUND(M44*100/L44-100,1),ROUND(M44/L44,1)&" р"))) -> 0 | P44: 3 | Q44: =IF(O44=0,0,IF(P44=0,"-100,0",IF(P44*100/O44<200,ROUND(P44*100/O44-100,1),ROUND(P44/O44,1)&" р"))) -> 0 | S44: 3 | T44: =IF(R44=0,0,IF(S44=0,"-100,0",IF(S44*100/R44<200,ROUND(S44*100/R44-100,1),ROUND(S44/R44,1)&" р"))) -> 0 | V44: 1 | W44: =IF(U44=0,0,IF(V44=0,"-100,0",IF(V44*100/U44<200,ROUND(V44*100/U44-100,1),ROUND(V44/U44,1)&" р"))) -> 0 | Z44: =IF(X44=0,0,IF(Y44=0,"-100,0",IF(Y44*100/X44<200,ROUND(Y44*100/X44-100,1),ROUND(Y44/X44,1)&" р"))) -> 0 | AC44: =IF(AA44=0,0,IF(AB44=0,"-100,0",IF(AB44*100/AA44<200,ROUND(AB44*100/AA44-100,1),ROUND(AB44/AA44,1)&" р"))) -> 0 | AF44: =IF(AD44=0,0,IF(AE44=0,"-100,0",IF(AE44*100/AD44<200,ROUND(AE44*100/AD44-100,1),ROUND(AE44/AD44,1)&" р"))) -> 0 | AH44: 1 | AI44: =IF(AG44=0,0,IF(AH44=0,"-100,0",IF(AH44*100/AG44<200,ROUND(AH44*100/AG44-100,1),ROUND(AH44/AG44,1)&" р"))) -> 0 | AL44: =IF(AJ44=0,0,IF(AK44=0,"-100,0",IF(AK44*100/AJ44<200,ROUND(AK44*100/AJ44-100,1),ROUND(AK44/AJ44,1)&" р"))) -> 0 | AN44: 1 | AO44: =IF(AM44=0,0,IF(AN44=0,"-100,0",IF(AN44*100/AM44<200,ROUND(AN44*100/AM44-100,1),ROUND(AN44/AM44,1)&" р"))) -> 0 | AQ44: 1 | AR44: =IF(AP44=0,0,IF(AQ44=0,"-100,0",IF(AQ44*100/AP44<200,ROUND(AQ44*100/AP44-100,1),ROUND(AQ44/AP44,1)&" р"))) -> 0 | AT44: 2 | AU44: =IF(AS44=0,0,IF(AT44=0,"-100,0",IF(AT44*100/AS44<200,ROUND(AT44*100/AS44-100,1),ROUND(AT44/AS44,1)&" р"))) -> 0 | AW44: 77 | AX44: =IF(AV44=0,0,IF(AW44=0,"-100,0",IF(AW44*100/AV44<200,ROUND(AW44*100/AV44-100,1),ROUND(AW44/AV44,1)&" р"))) -> 0 | BA44: =IF(AY44=0,0,IF(AZ44=0,"-100,0",IF(AZ44*100/AY44<200,ROUND(AZ44*100/AY44-100,1),ROUND(AZ44/AY44,1)&" р"))) -> 0 | BD44: =IF(BB44=0,0,IF(BC44=0,"-100,0",IF(BC44*100/BB44<200,ROUND(BC44*100/BB44-100,1),ROUND(BC44/BB44,1)&" р"))) -> 0 | BG44: =IF(BE44=0,0,IF(BF44=0,"-100,0",IF(BF44*100/BE44<200,ROUND(BF44*100/BE44-100,1),ROUND(BF44/BE44,1)&" р"))) -> 0 | BJ44: =IF(BH44=0,0,IF(BI44=0,"-100,0",IF(BI44*100/BH44<200,ROUND(BI44*100/BH44-100,1),ROUND(BI44/BH44,1)&" р"))) -> 0 | BM44: =IF(BK44=0,0,IF(BL44=0,"-100,0",IF(BL44*100/BK44<200,ROUND(BL44*100/BK44-100,1),ROUND(BL44/BK44,1)&" р"))) -> 0 | BP44: =IF(BN44=0,0,IF(BO44=0,"-100,0",IF(BO44*100/BN44<200,ROUND(BO44*100/BN44-100,1),ROUND(BO44/BN44,1)&" р"))) -> 0 | BS44: =IF(BQ44=0,0,IF(BR44=0,"-100,0",IF(BR44*100/BQ44<200,ROUND(BR44*100/BQ44-100,1),ROUND(BR44/BQ44,1)&" р"))) -> 0 | BV44: =IF(BT44=0,0,IF(BU44=0,"-100,0",IF(BU44*100/BT44<200,ROUND(BU44*100/BT44-100,1),ROUND(BU44/BT44,1)&" р"))) -> 0 | BY44: =IF(BW44=0,0,IF(BX44=0,"-100,0",IF(BX44*100/BW44<200,ROUND(BX44*100/BW44-100,1),ROUND(BX44/BW44,1)&" р"))) -> 0 | CB44: =IF(BZ44=0,0,IF(CA44=0,"-100,0",IF(CA44*100/BZ44<200,ROUND(CA44*100/BZ44-100,1),ROUND(CA44/BZ44,1)&" р"))) -> 0 | CD44: 95 | CE44: =IF(CC44=0,0,IF(CD44=0,"-100,0",IF(CD44*100/CC44<200,ROUND(CD44*100/CC44-100,1),ROUND(CD44/CC44,1)&" р"))) -> 0 | CG44: 11 | CH44: =IF(CF44=0,0,IF(CG44=0,"-100,0",IF(CG44*100/CF44<200,ROUND(CG44*100/CF44-100,1),ROUND(CG44/CF44,1)&" р"))) -> 0 | CJ44: 3 | CK44: =IF(CI44=0,0,IF(CJ44=0,"-100,0",IF(CJ44*100/CI44<200,ROUND(CJ44*100/CI44-100,1),ROUND(CJ44/CI44,1)&" р"))) -> 0 | CM44: 2 | CN44: =IF(CL44=0,0,IF(CM44=0,"-100,0",IF(CM44*100/CL44<200,ROUND(CM44*100/CL44-100,1),ROUND(CM44/CL44,1)&" р"))) -> 0 | CQ44: =IF(CO44=0,0,IF(CP44=0,"-100,0",IF(CP44*100/CO44<200,ROUND(CP44*100/CO44-100,1),ROUND(CP44/CO44,1)&" р"))) -> 0 | CT44: =IF(CR44=0,0,IF(CS44=0,"-100,0",IF(CS44*100/CR44<200,ROUND(CS44*100/CR44-100,1),ROUND(CS44/CR44,1)&" р"))) -> 0 | CW44: =IF(CU44=0,0,IF(CV44=0,"-100,0",IF(CV44*100/CU44<200,ROUND(CV44*100/CU44-100,1),ROUND(CV44/CU44,1)&" р"))) -> 0 | CZ44: =IF(CX44=0,0,IF(CY44=0,"-100,0",IF(CY44*100/CX44<200,ROUND(CY44*100/CX44-100,1),ROUND(CY44/CX44,1)&" р"))) -> 0 | DC44: =IF(DA44=0,0,IF(DB44=0,"-100,0",IF(DB44*100/DA44<200,ROUND(DB44*100/DA44-100,1),ROUND(DB44/DA44,1)&" р"))) -> 0 | DF44: =IF(DD44=0,0,IF(DE44=0,"-100,0",IF(DE44*100/DD44<200,ROUND(DE44*100/DD44-100,1),ROUND(DE44/DD44,1)&" р"))) -> 0
A45: 36 | B45: №25 | G45: 46 | M45: 1 | P45: 1 | S45: 1 | AN45: 1 | AQ45: 1 | AW45: 4 | CD45: 40 | CG45: 4 | CJ45: 1 | CY45: 1
A46: 37 | B46: №30 | D46: 22 | G46: 9 | M46: 1 | P46: 1 | S46: 1 | AN46: 3 | AQ46: 2 | AT46: 1 | AW46: 4 | CD46: 22
A47: 38 | B47: Усього (без ВП) | C47: 3213 | D47: 3798 | E47: 18.2 | F47: 1292 | G47: 1673 | H47: 29.5 | I47: 186 | J47: 234 | K47: 25.8 | L47: 556 | M47: 551 | N47: -0.9 | O47: 32 | P47: 52 | Q47: 62.5 | R47: 86 | S47: 150 | T47: 74.4 | U47: 2 | V47: 3 | W47: 50 | X47: 17 | Y47: 18 | Z47: 5.9 | AA47: 0 | AB47: 0 | AC47: 0 | AD47: 0 | AE47: 2 | AF47: 0 | AG47: 470 | AH47: 399 | AI47: -15.1 | AJ47: 0 | AK47: 0 | AL47: 0 | AM47: 27 | AN47: 81 | AO47: 3 р | AP47: 19 | AQ47: 65 | AR47: 3,4 р | AS47: 89 | AT47: 89 | AU47: 0 | AV47: 192 | AW47: 328 | AX47: 70.8 | AY47: 1 | AZ47: 0 | BA47: -100,0 | BB47: 0 | BC47: 0 | BD47: 0 | BE47: 6 | BF47: 0 | BG47: -100,0 | BH47: 1 | BI47: 0 | BJ47: -100,0 | BK47: 1 | BL47: 0 | BM47: -100,0 | BN47: 0 | BO47: 0 | BP47: 0 | BQ47: 0 | BR47: 1 | BS47: 0 | BT47: 0 | BU47: 0 | BV47: 0 | BW47: 0 | BX47: 0 | BY47: 0 | BZ47: 0 | CA47: 0 | CB47: 0 | CC47: 3641 | CD47: 4422 | CE47: 21.5 | CF47: 172 | CG47: 193 | CH47: 12.2 | CI47: 39 | CJ47: 51 | CK47: 30.8 | CL47: 20 | CM47: 25 | CN47: 25 | CO47: 2 | CP47: 1 | CQ47: -50 | CR47: 7 | CS47: 6 | CT47: -14.3 | CU47: 2 | CV47: 2 | CW47: 0 | CX47: 33 | CY47: 47 | CZ47: 42.4 | DA47: 2 | DB47: 4 | DC47: 2 р | DD47: 0 | DE47: 2 | DF47: 0
A48: 39 | B48: Апарат ГВП | C48: 56 | D48: 94 | E48: 67.9 | F48: 47 | G48: 90 | H48: 91.5 | K48: 0 | L48: 4 | M48: 10 | N48: 2,5 р | O48: 3 | P48: 9 | Q48: 3 р | R48: 3 | S48: 9 | T48: 3 р | W48: 0 | X48: 2 | Z48: -100,0 | AC48: 0 | AF48: 0 | AG48: 1 | AH48: 1 | AI48: 0 | AL48: 0 | AM48: 1 | AN48: 8 | AO48: 8 р | AQ48: 7 | AR48: 0 | AT48: 2 | AU48: 0 | AV48: 25 | AW48: 89 | AX48: 3,6 р | BA48: 0 | BD48: 0 | BG48: 0 | BJ48: 0 | BM48: 0 | BP48: 0 | BS48: 0 | BV48: 0 | BY48: 0 | CB48: 0 | CC48: 73 | CD48: 75 | CE48: 2.7 | CF48: 10 | CG48: 13 | CH48: 30 | CI48: 12 | CJ48: 10 | CK48: -16.7 | CL48: 8 | CM48: 9 | CN48: 12.5 | CQ48: 0 | CT48: 0 | CW48: 0 | CX48: 3 | CY48: 2 | CZ48: -33.3 | DC48: 0 | DF48: 0
A49: 40 | B49: Західного регіону | C49: 335 | D49: 387 | E49: 15.5 | F49: 368 | G49: 179 | H49: -51.4 | I49: 7 | J49: 4 | K49: -42.9 | L49: 77 | M49: 72 | N49: -6.5 | O49: 2 | P49: 7 | Q49: 3,5 р | R49: 60 | S49: 58 | T49: -3.3 | W49: 0 | X49: 5 | Y49: 14 | Z49: 2,8 р | AC49: 0 | AE49: 1 | AF49: 0 | AG49: 17 | AH49: 13 | AI49: -23.5 | AL49: 0 | AM49: 212 | AN49: 17 | AO49: -92 | AP49: 210 | AQ49: 16 | AR49: -92.4 | AS49: 7 | AT49: 11 | AU49: 57.1 | AV49: 11 | AW49: 8 | AX49: -27.3 | BA49: 0 | BD49: 0 | BG49: 0 | BJ49: 0 | BM49: 0 | BP49: 0 | BS49: 0 | BV49: 0 | BY49: 0 | CB49: 0 | CC49: 396 | CD49: 458 | CE49: 15.7 | CF49: 33 | CG49: 20 | CH49: -39.4 | CI49: 9 | CJ49: 4 | CK49: -55.6 | CL49: 2 | CN49: -100,0 | CQ49: 0 | CS49: 7 | CT49: 0 | CW49: 0 | CX49: 4 | CY49: 11 | CZ49: 2,8 р | DA49: 1 | DC49: -100,0 | DF49: 0
A50: 41 | B50: Південного регіону | C50: 306 | D50: 284 | E50: -7.2 | F50: 265 | G50: 340 | H50: 28.3 | I50: 13 | J50: 3 | K50: -76.9 | L50: 125 | M50: 133 | N50: 6.4 | O50: 2 | Q50: -100,0 | R50: 97 | S50: 107 | T50: 10.3 | W50: 0 | X50: 12 | Y50: 3 | Z50: -75 | AC50: 0 | AD50: 7 | AF50: -100,0 | AG50: 21 | AH50: 26 | AI50: 23.8 | AK50: 4 | AL50: 0 | AM50: 83 | AN50: 117 | AO50: 41 | AP50: 81 | AQ50: 116 | AR50: 43.2 | AS50: 13 | AT50: 40 | AU50: 3,1 р | AV50: 9 | AW50: 12 | AX50: 33.3 | BA50: 0 | BD50: 0 | BG50: 0 | BJ50: 0 | BM50: 0 | BP50: 0 | BS50: 0 | BV50: 0 | BY50: 0 | CB50: 0 | CC50: 341 | CD50: 322 | CE50: -5.6 | CF50: 24 | CG50: 40 | CH50: 66.7 | CI50: 8 | CJ50: 13 | CK50: 62.5 | CL50: 1 | CM50: 8 | CN50: 8 р | CQ50: 0 | CT50: 0 | CU50: 2 | CW50: -100,0 | CX50: 3 | CY50: 1 | CZ50: -66.7 | DC50: 0 | DF50: 0
A51: 42 | B51: Центрального регіону | C51: 425 | D51: 407 | E51: -4.2 | F51: 274 | G51: 226 | H51: -17.5 | I51: 3 | J51: 4 | K51: 33.3 | L51: 137 | M51: 90 | N51: -34.3 | O51: 4 | P51: 3 | Q51: -25 | R51: 108 | S51: 81 | T51: -25 | W51: 0 | X51: 3 | Y51: 1 | Z51: -66.7 | AC51: 0 | AD51: 1 | AE51: 3 | AF51: 3 р | AG51: 28 | AH51: 6 | AI51: -78.6 | AJ51: 4 | AL51: -100,0 | AM51: 68 | AN51: 22 | AO51: -67.6 | AP51: 68 | AQ51: 22 | AR51: -67.6 | AS51: 16 | AT51: 19 | AU51: 18.8 | AV51: 14 | AW51: 1 | AX51: -92.9 | BA51: 0 | BD51: 0 | BG51: 0 | BJ51: 0 | BM51: 0 | BP51: 0 | BS51: 0 | BV51: 0 | BY51: 0 | CB51: 0 | CC51: 464 | CD51: 501 | CE51: 8 | CF51: 41 | CG51: 26 | CH51: -36.6 | CI51: 7 | CJ51: 7 | CK51: 0 | CL51: 3 | CM51: 2 | CN51: -33.3 | CQ51: 0 | CS51: 1 | CT51: 0 | CW51: 0 | CX51: 6 | CY51: 5 | CZ51: -16.7 | DC51: 0 | DE51: 1 | DF51: 0
A52: 43 | B52: Сил АТО | C52: 742 | D52: 439 | F52: 219 | G52: 257 | I52: 3 | J52: 5 | L52: 118 | M52: 119 | O52: 8 | P52: 3 | R52: 96 | S52: 84 | U52: 1 | X52: 22 | Y52: 28 | AG52: 22 | AH52: 35 | AJ52: 2 | AK52: 1 | AM52: 22 | AN52: 17 | AP52: 22 | AQ52: 17 | AS52: 18 | AT52: 27 | AV52: 23 | AW52: 24 | CC52: 780 | CD52: 509 | CF52: 40 | CG52: 24 | CI52: 19 | CJ52: 6 | CL52: 14 | CM52: 5 | CX52: 2 | CY52: 3
A53: 44 | B53: Усього по ВП | C53: 1864 | D53: 1611 | E53: -13.6 | F53: 1173 | G53: 1092 | H53: -6.9 | I53: 26 | J53: 16 | K53: -38.5 | L53: 461 | M53: 424 | N53: -8 | O53: 19 | P53: 22 | Q53: 15.8 | R53: 364 | S53: 339 | T53: -6.9 | U53: 1 | V53: 0 | W53: -100,0 | X53: 44 | Y53: 46 | Z53: 4.5 | AA53: 0 | AB53: 0 | AC53: 0 | AD53: 8 | AE53: 4 | AF53: -50 | AG53: 89 | AH53: 81 | AI53: -9 | AJ53: 6 | AK53: 5 | AL53: -16.7 | AM53: 386 | AN53: 181 | AO53: -53.1 | AP53: 381 | AQ53: 178 | AR53: -53.3 | AS53: 54 | AT53: 99 | AU53: 83.3 | AV53: 82 | AW53: 134 | AX53: 63.4 | AY53: 0 | AZ53: 0 | BA53: 0 | BB53: 0 | BC53: 0 | BD53: 0 | BE53: 0 | BF53: 0 | BG53: 0 | BH53: 0 | BI53: 0 | BJ53: 0 | BK53: 0 | BL53: 0 | BM53: 0 | BN53: 0 | BO53: 0 | BP53: 0 | BQ53: 0 | BR53: 0 | BS53: 0 | BT53: 0 | BU53: 0 | BV53: 0 | BW53: 0 | BX53: 0 | BY53: 0 | BZ53: 0 | CA53: 0 | CB53: 0 | CC53: 2054 | CD53: 1865 | CE53: -9.2 | CF53: 148 | CG53: 123 | CH53: -16.9 | CI53: 55 | CJ53: 40 | CK53: -27.3 | CL53: 28 | CM53: 24 | CN53: -14.3 | CO53: 0 | CP53: 0 | CQ53: 0 | CR53: 0 | CS53: 8 | CT53: 0 | CU53: 2 | CV53: 0 | CW53: -100,0 | CX53: 18 | CY53: 22 | CZ53: 22.2 | DA53: 1 | DB53: 0 | DC53: -100,0 | DD53: 0 | DE53: 1 | DF53: 0
A54: 45 | B54: Усього по Україні | C54: 5077 | D54: 5409 | E54: 6.5 | F54: 2465 | G54: 2765 | H54: 12.2 | I54: 212 | J54: 250 | K54: 17.9 | L54: 1017 | M54: 975 | N54: -4.1 | O54: 51 | P54: 74 | Q54: 45.1 | R54: 450 | S54: 489 | T54: 8.7 | U54: 3 | V54: 3 | W54: 0 | X54: 61 | Y54: 64 | Z54: 4.9 | AA54: 0 | AB54: 0 | AC54: 0 | AD54: 8 | AE54: 6 | AF54: -25 | AG54: 559 | AH54: 480 | AI54: -14.1 | AJ54: 6 | AK54: 5 | AL54: -16.7 | AM54: 413 | AN54: 262 | AO54: -36.6 | AP54: 400 | AQ54: 243 | AR54: -39.3 | AS54: 143 | AT54: 188 | AU54: 31.5 | AV54: 274 | AW54: 462 | AX54: 68.6 | AY54: 1 | AZ54: 0 | BA54: -100,0 | BB54: 0 | BC54: 0 | BD54: 0 | BE54: 6 | BF54: 0 | BG54: -100,0 | BH54: 1 | BI54: 0 | BJ54: -100,0 | BK54: 1 | BL54: 0 | BM54: -100,0 | BN54: 0 | BO54: 0 | BP54: 0 | BQ54: 0 | BR54: 1 | BS54: 0 | BT54: 0 | BU54: 0 | BV54: 0 | BW54: 0 | BX54: 0 | BY54: 0 | BZ54: 0 | CA54: 0 | CB54: 0 | CC54: 5695 | CD54: 6287 | CE54: 10.4 | CF54: 320 | CG54: 316 | CH54: -1.3 | CI54: 94 | CJ54: 91 | CK54: -3.2 | CL54: 48 | CM54: 49 | CN54: 2.1 | CO54: 2 | CP54: 1 | CQ54: -50 | CR54: 7 | CS54: 14 | CT54: 2 р | CU54: 4 | CV54: 2 | CW54: -50 | CX54: 51 | CY54: 69 | CZ54: 35.3 | DA54: 3 | DB54: 4 | DC54: 33.3 | DD54: 0 | DE54: 3 | DF54: 0
